Cogmind - Beta 14 @@@ ROGUE MODE // 2024.12.26 @ 16:11:48 Player: dwarfinator Result: Destroyed by H-88 Terminator with KE Penetrator Performance ------------- Evolutions (8) 4000 Regions Visited (30) 6000 Robots Destroyed (558) 2790 Value Destroyed (26339) 26339 Prototype IDs (63) 1260 Alien Tech Used (9) 1800 Bonus (10400) 10400 TOTAL SCORE: 52589 Bonus ------- Pacifist 200 High Alert Combat Kills 6057 Follower Combat Kills 984 Entered Garrisons 400 Used RIF Installer 500 Network Hubs Disabled 400 Aligned with FarCom 300 Found Hidden Lab 3000 Used Core Reset Matrix 3000 Met R17 at Research 2000 Pursued by Intercept 1000 Friendly Fire -7441 Cogmind --------- Core Integrity 0/1450 Matter 107/300 Energy 100/100 System Corruption 1% Temperature Cool (0) Movement Core (200) Ox3 Location -2/Section 7 Parts ------- > --- POWER (3) -------- (None) > --- PROPULSION (2) --- (None) > --- UTILITY (15) ----- System Shield Microwarp Drive Microwarp Drive > --- WEAPON (3) ------- (None) > --- INVENTORY (5) ---- Experimental Coolant Injector Compact Matter Pod (150) Compact HERF Cannon Potential Cannon Peak State ------------ > --- POWER ------------ Antimatter Reactor Graviton Reactor Quantum Reactor > --- PROPULSION ------- Centrium Wheel Centrium Wheel > --- UTILITY ---------- Advanced Cooling System Advanced Cooling System Huge Storage Unit Machine Analyzer Improved Transmission Jammer Advanced Cloaking Device Advanced Cloaking Device Improved Medium Armor Plating Centrium Medium Armor Plating Medium Regenerative Plating EM Disruption Field Advanced Force Field Improved Hacking Suite Deep Network Scanner Experimental System Shield > --- WEAPON ----------- Compact HERF Cannon Sigix Broadsword > --- INVENTORY -------- Micro Antimatter Reactor Centrium Wheel Experimental Heat Sink Experimental Heat Sink Experimental Coolant Injector Improved Terrain Scanner Seismic Detector Quantum Capacitor Centrium Medium Armor Plating Advanced Force Field Long-range Tractor Beam Long-range Proton Cannon Long-range Proton Cannon Long-range Phase Cannon Potential Cannon Core Cannon Advanced EMP Blaster Heavy Shock Bomb Launcher Fusion Bomb Launcher Plasma Cutter Core Stripper [Rating: 190] Favorites ----------- Power Quantum Reactor Engine Cooled Ion Engine Power Core Neutrino Core Reactor Quantum Reactor Propulsion Compact Wheel Wheel Compact Wheel Hover Unit Backup Propulsion III Utility Huge Storage Unit Device Advanced Cooling System Storage Huge Storage Unit Processor Machine Analyzer Hackware Improved Hacking Suite Protection Medium Armor Plating Artifact Microwarp Drive Weapon Nova Cannon Energy Gun Hypervelocity EM Gauss Rifle Energy Cannon Nova Cannon Ballistic Gun Assault Rifle Ballistic Cannon Hardcell Cannon Launcher Rocket Launcher Special Weapon Advanced Remote Datajack Impact Weapon Core Stripper Slashing Weapon Sigix Broadsword Special Melee Weapon Improved Datajack Build | -11 -10 -9 -9 -9 -8 -8 -8 -8 -8 -6 -6 -6 -6 -5 -5 -5 -5 -5 -5 -5 -4 -4 -4 -4 -4 -3 -3 -2 -2 -2 ------- Run | Yrd Mat Mat Min Exi Min Mat Sto Rec Scr Fac Gar Fac Gar Fac Was Fac Ext Cet Arc Hub Fac Was Fac Arm Lab Res Qua Res Tes Sec Slots Evolved 16 | . . 2 . . . 2 . . . 4 . . . 2 . . . . . . 2 . . . . 2 . 2 . . Power 2 | . . . . . . . . . . 2 . . . . . . . . . . . . . . . . . . . . Propulsion . | . . . . . . . . . . . . . . . . . . . . . . . . . . . . . . . Utility 13 | . . 2 . . . 2 . . . 2 . . . 2 . . . . . . 2 . . . . 2 . 1 . . Weapon 1 | . . . . . . . . . . . . . . . . . . . . . . . . . . . . 1 . . Parts Attached 972 | 6 . 34 3 5 2 36 27 1 15 63 42 15 12 16 18 50 28 9 19 78 64 19 144 75 18 36 49 34 48 6 Power 54 | 1 . 4 1 . . 1 1 . 1 4 1 1 1 2 3 5 2 . 2 2 3 1 1 5 1 4 2 2 3 . Engine 12 | 1 . 4 . . . . 1 . 1 3 . 1 1 . . . . . . . . . . . . . . . . . Core 7 | . . . 1 . . 1 . . . 1 . . . 2 . 2 . . . . . . . . . . . . . . Reactor 35 | . . . . . . . . . . . 1 . . . 3 3 2 . 2 2 3 1 1 5 1 4 2 2 3 . Propulsion 31 | 2 . 5 1 . 1 1 1 . 1 2 3 . . . . 1 . . . . 3 2 . 2 1 3 1 . 1 . Treads . | . . . . . . . . . . . . . . . . . . . . . . . . . . . . . . . Leg . | . . . . . . . . . . . . . . . . . . . . . . . . . . . . . . . Wheel 31 | 2 . 5 1 . 1 1 1 . 1 2 3 . . . . 1 . . . . 3 2 . 2 1 3 1 . 1 . Hover . | . . . . . . . . . . . . . . . . . . . . . . . . . . . . . . . Flight . | . . . . . . . . . . . . . . . . . . . . . . . . . . . . . . . Utility 595 | 1 . 15 1 3 1 29 15 . 10 42 15 9 8 10 10 27 14 5 15 60 34 9 85 57 11 25 27 21 33 3 Device 421 | . . 2 1 1 . 11 10 . 4 28 10 7 4 9 8 19 10 3 10 42 28 4 79 47 6 17 20 14 27 . Storage 21 | 1 . 4 . 1 . . 1 . 2 1 1 . 1 . . . 2 . . . . . 1 3 . . . 3 . . Processor 8 | . . 1 . . . . . . . . 2 . . . . . . . . . . . 1 . . 1 . 1 2 . Hackware 17 | . . . . . . . 1 . . 2 . . . . 1 1 . . 1 2 3 1 . . . 3 1 . . 1 Protection 125 | . . 8 . 1 1 18 3 . 4 11 2 2 3 1 1 7 2 2 4 16 3 4 4 7 4 4 6 3 4 . Artifact 3 | . . . . . . . . . . . . . . . . . . . . . . . . . 1 . . . . 2 Weapon 292 | 2 . 10 . 2 . 5 10 1 3 15 23 5 3 4 5 17 12 4 2 16 24 7 58 11 5 4 19 11 11 3 Energy Gun 2 | . . . . . . . . . . . . . . . . . . . . . . . . . 2 . . . . . Energy Cannon 157 | . . . . . . . . . . . 12 2 2 2 2 7 5 3 2 9 18 6 45 7 2 3 12 8 7 3 Ballistic Gun 5 | 2 . 3 . . . . . . . . . . . . . . . . . . . . . . . . . . . . Ballistic Cannon 2 | . . 1 . . . . . . . . . . . . . . . . . . . . . . . 1 . . . . Launcher 89 | . . 6 . 2 . 4 6 . 2 15 8 2 1 1 . 6 5 1 . 4 4 . 13 2 . . 3 1 3 . Special Weapon 29 | . . . . . . . 4 . 1 . 3 1 . 1 2 4 2 . . 3 2 1 . 2 1 . 2 . . . Impact Weapon 2 | . . . . . . 1 . . . . . . . . . . . . . . . . . . . . . . 1 . Slashing Weapon 5 | . . . . . . . . . . . . . . . 1 . . . . . . . . . . . 2 2 . . Piercing Weapon . | . . . . . . . . . . . . . . . . . . . . . . . . . . . . . . . Special Melee Weapon 1 | . . . . . . . . 1 . . . . . . . . . . . . . . . . . . . . . . Unidentified Prototypes 31 | . . 1 . . . . 1 . . . . 1 . . 1 2 1 1 . 1 2 1 3 . 7 3 1 . 5 . Corrupted Parts 2 | . . . . . . . . . . . 1 . . . . . . . 1 . . . . . . . . . . . System Corruption 18 | . . . . . . . . . . . 9 . . . . . . . 9 . . . . . . . . . . . Parts Lost 70 | . 2 3 . . . . . . . 3 4 2 1 . . 2 . . . 8 1 . 4 9 2 5 . 1 23 . Power 17 | . 1 1 . . . . . . . 2 1 1 . . . . . . . 2 1 . . 1 1 2 . 1 3 . Propulsion 4 | . 1 . . . . . . . . . 1 . . . . 1 . . . . . . . . . . . . 1 . Utility 37 | . . 1 . . . . . . . 1 2 . 1 . . 1 . . . 5 . . 3 6 . 3 . . 14 . Weapon 12 | . . 1 . . . . . . . . . 1 . . . . . . . 1 . . 1 2 1 . . . 5 . Highest Loss Streak 16 | . 1 1 . . . . . . . 1 1 1 1 . . 1 . . . 2 1 . 2 6 2 5 . 1 16 . To Critical Strikes 1 | . . . . . . . . . . . 1 . . . . . . . . . . . . . . . . . . . Average Slot Usage (%) 89 | . 75 94 100 79 100 95 89 90 87 93 92 91 88 87 90 82 83 88 84 80 94 93 87 93 88 93 97 93 83 6 Engine 4 | . 6 9 9 . . . 5 9 9 19 13 12 9 6 . . . . . . . . . . . . . . . . Core 2 | . . . 1 11 11 9 3 . . . 4 . . 6 7 5 2 . . . . . . . . . . . . . Reactor 7 | . . . . . . . . . . . 1 6 6 2 7 11 14 17 16 16 13 15 15 14 15 13 13 13 11 . Wheel 12 | . 26 20 22 22 22 18 18 18 18 12 12 13 13 11 11 6 5 5 5 5 9 6 10 9 9 7 9 8 7 . Device 22 | . . 2 1 11 11 15 18 18 16 18 19 22 20 23 25 22 28 27 27 28 29 35 27 38 27 30 28 32 25 . Storage 6 | . 14 11 11 11 11 9 9 9 9 6 6 6 6 5 5 5 5 5 5 5 5 5 5 5 5 4 4 4 3 . Processor 1 | . . 3 . . . . . . . . 5 6 6 5 4 . . . . . . . . 5 5 4 4 4 4 . Hackware 3 | . . . . . . . . . . 7 . . . . 4 5 1 . . . 8 10 9 5 5 13 14 13 11 . Protection 13 | . . 25 31 22 22 25 17 18 16 13 13 10 12 11 5 9 11 18 14 9 15 7 7 4 9 7 12 8 8 . Energy Cannon 5 | . . . . . . . . . . . 9 6 7 7 4 10 7 6 11 10 9 7 9 9 6 5 6 4 5 . Launcher 6 | . . 20 22 2 22 17 17 17 10 13 2 4 3 2 . . 2 4 . . . . . . . . . . . . Peak Build Rating 190 | 6 6 17 20 25 25 35 41 35 57 63 78 87 80 92 101 109 118 127 122 124 140 142 147 143 150 152 177 190 187 63 Average Rating 85 | 4 5 13 17 17 25 31 33 34 37 54 66 78 76 87 92 102 109 121 115 110 124 132 138 131 122 141 160 180 159 39 On Entrance 77 | . 6 4 17 20 25 25 33 34 35 38 57 78 69 78 83 97 108 115 122 107 108 133 137 136 132 127 138 173 177 4 Naked Turns 69 | . . . . . . . . . . . . . . . . . . . . . . . . . . . . . 57 12 Heaviest Build 224 | 11 11 53 53 70 70 91 128 126 130 177 182 186 187 192 206 206 214 221 219 224 213 215 223 206 204 196 196 203 214 12 Greatest Support 36 | 26 26 32 28 28 28 28 28 28 28 28 32 32 32 32 32 32 28 28 28 28 32 32 32 32 32 32 32 32 36 3 Greatest Overweight (x) 13 | . . 2 3 2 2 3 4 4 5 13 7 5 5 5 6 12 7 7 7 7 7 6 6 10 6 8 6 6 6 3 Average Overweight (x) 4 | . . . 1 1 2 2 3 4 3 5 5 5 4 5 5 6 7 7 6 6 6 5 6 5 5 5 5 5 4 1 Largest Inventory Capacity 40 | 8 8 15 15 20 20 20 25 25 40 25 25 25 25 25 25 25 25 25 25 25 25 25 25 25 25 25 25 25 25 5 Average Capacity 23 | 6 8 10 15 19 20 20 22 25 26 25 25 25 25 25 25 25 25 25 25 25 25 25 25 25 25 25 25 25 23 5 Most Carried 27 | 2 2 15 15 20 20 20 25 25 27 25 25 25 25 25 25 25 25 25 25 25 25 25 25 25 25 25 25 25 25 5 Average Carried 22 | . 2 9 14 16 20 19 21 24 24 24 24 24 24 24 24 24 24 24 24 23 23 23 24 24 23 24 24 24 20 4 Final Capacity 25 | 8 8 15 15 20 20 20 25 25 25 25 25 25 25 25 25 25 25 25 25 25 25 25 25 25 25 25 25 25 5 5 Final Carried 25 | 2 2 15 15 20 20 20 25 24 25 25 25 25 25 25 25 25 25 25 25 18 25 25 25 25 25 23 25 25 5 5 Class Distribution -------------------- 49% | Mutant 19% | Hacker-Mutant 19% | Scavenger-Mutant 10% | Commander-Mutant Dominant Class ---------------- Mutant | -10/Materials Mutant | -9/Materials Mutant | -9/Mines Mutant | -9/Exiles Mutant | -8/Mines Mutant | -8/Materials Commander-Mutant | -8/Storage Mutant | -8/Recycling Commander-Mutant | -8/Scraptown Mutant | -6/Factory Mutant | -6/Garrison Mutant | -6/Factory Mutant | -6/Garrison Mutant | -5/Factory Scavenger-Mutant | -5/Waste Scavenger-Mutant | -5/Factory Mutant | -5/Extension Mutant | -5/Cetus Scavenger-Mutant | -5/Archives Scavenger-Mutant | -5/Hub_04(d) Scavenger-Mutant | -4/Factory Hacker-Mutant | -4/Waste Hacker-Mutant | -4/Factory Scavenger-Mutant | -4/Armory Scavenger-Mutant | -4/Lab Hacker-Mutant | -3/Research Hacker-Mutant | -3/Quarantine Hacker-Mutant | -2/Research Hacker-Mutant | -2/Testing Alien-Mutant | -2/Section 7 Resources | -11 -10 -9 -9 -9 -8 -8 -8 -8 -8 -6 -6 -6 -6 -5 -5 -5 -5 -5 -5 -5 -4 -4 -4 -4 -4 -3 -3 -2 -2 -2 ----------- Run | Yrd Mat Mat Min Exi Min Mat Sto Rec Scr Fac Gar Fac Gar Fac Was Fac Ext Cet Arc Hub Fac Was Fac Arm Lab Res Qua Res Tes Sec Matter Collected 17649 | 260 . 1178 140 656 163 1001 582 22 63 2169 1708 149 227 212 340 806 507 206 229 1091 699 425 1795 834 81 555 562 300 689 . Remotely 2831 | . . . . . . . . . . . . . . . . 420 . . . 536 369 . 616 342 . . 197 65 286 . Salvage Created 27411 | . . 857 . . 187 495 291 64 . 1787 2874 41 740 528 503 1569 1581 673 703 2424 1588 2720 3688 1143 81 119 705 750 1300 . Parts 1204 | . . 80 . . 14 32 9 6 . 86 133 5 22 24 20 81 72 29 30 97 62 65 153 46 3 4 32 33 66 . Haulers Intercepted 7 | . . 4 . . . 1 . . . . . . . 1 . . . . . . . . 1 . . . . . . . Recyclers Shooed 12 | . . . . . . . . . . 3 . . . 1 . 1 3 . . . 1 . 2 . . . . . 1 . Parts Field Recycled 3 | . . . . . . . . . . . . . . . . . . . . . . . . . . 3 . . . . Retrieved Matter 11 | . . . . . . . . . . . . . . . . . . . . . . . . . . 11 . . . . Parts Self-Destructed . | . . . . . . . . . . . . . . . . . . . . . . . . . . . . . . . Prevented . | . . . . . . . . . . . . . . . . . . . . . . . . . . . . . . . Kills | -11 -10 -9 -9 -9 -8 -8 -8 -8 -8 -6 -6 -6 -6 -5 -5 -5 -5 -5 -5 -5 -4 -4 -4 -4 -4 -3 -3 -2 -2 -2 ------- Run | Yrd Mat Mat Min Exi Min Mat Sto Rec Scr Fac Gar Fac Gar Fac Was Fac Ext Cet Arc Hub Fac Was Fac Arm Lab Res Qua Res Tes Sec Combat Hostiles Destroyed 396 | . . 35 . . 8 20 5 1 . 30 48 . 11 8 . 27 22 8 4 45 24 6 43 19 1 . 8 9 14 . Melee 1 | . . . . . . . . . . . . . . . . . . . . . . . . . . . 1 . . . Cannons 127 | . . . . . . . . . . . 13 . 2 2 . 12 17 . 3 26 4 5 19 12 . . 1 5 6 . AOE 184 | . . 35 . . 8 20 5 1 . 24 25 . 2 6 . 14 4 . . 11 9 . 7 4 . . 4 1 4 . Classes Destroyed 23 | . . 12 . . 1 1 . . . 4 1 . . . 1 . 2 . . . . 1 . . . . . . . . Worker 36 | . . 3 . . 1 1 1 . . 10 . . . 1 . 2 5 . . 5 2 . 3 . . 1 1 . . . Builder 26 | . . 4 . . . 3 . . . 5 . . . 1 . 6 2 . . . 1 . . . . . 1 1 2 . Tunneler 12 | . . 2 . . . 1 . . . 2 . 2 . 1 . . 3 . . . . . . . . . . 1 . . Hauler 7 | . . 4 . . . 1 . . . . . . . 1 . . . . . . . . 1 . . . . . . . Recycler 15 | . . 2 . . 2 . 1 . . 1 . . . . . 1 1 . . . . . 2 . . 1 1 . 3 . Mechanic 6 | . . . . . . . . . . 2 . . . . . . . . . 2 . . 1 . . . 1 . . . Operator 19 | . . 1 . . . 1 1 . . 2 1 . . . . 1 . . 9 . 1 . 1 . . . 1 . . . Drone 1 | . . . . . . . . . . . . . . . . . 1 . . . . . . . . . . . . . Watcher 11 | . . 2 . . . . 1 . . 1 . . . . . 1 2 2 . . . . 1 1 . . . . . . Swarmer 73 | . . 12 . . 7 . . . . 3 15 . . 4 . 8 8 . . . 5 . 3 3 . . . . 5 . Saboteur 3 | . . . . . . . . . . 1 . . . . . . . . . . 1 . . 1 . . . . . . Grunt 122 | . . 12 . . . 16 4 1 . 16 13 . 6 2 . 9 4 . . 20 7 . 8 . . . 3 . 1 . Brawler 8 | . . . . . . . . . . 3 1 . . . . 1 . . . . 2 . 1 . . . . . . . Duelist 14 | . . 1 . . . . . . . . 1 . 2 . . . 1 . . . 3 . 3 3 . . . . . . Protector 4 | . . 1 . . . . . . . . . . . . . . . . . 3 . . . . . . . . . . Sentry 49 | . . 9 . . . 3 2 . . 2 3 . 2 1 . 3 4 . 4 5 . . 8 2 . . . 1 . . Specialist 15 | . . . . . . . . . . . 5 . . . . . . . . 2 . . . 6 . . . . 2 . Hunter 27 | . . . . . 1 . . . . . 9 . 1 . . 2 2 . . 1 2 . 4 . . . 2 3 . . Programmer 50 | . . . . . . . . . . 5 1 . . 1 . 4 . . . 5 4 . 15 4 . . 3 4 4 . Heavy 1 | . . . . . . 1 . . . . . . . . . . . . . . . . . . . . . . . . Behemoth 4 | . . . . . . . . . . . . . . . . . 2 . . . . . 1 . . . . 1 . . Compactor 6 | . . . . . . . . . . . . . . . . . . . . . . 6 . . . . . . . . Cetus Guard 8 | . . . . . . . . . . . . . . . . . . 8 . . . . . . . . . . . . Lightning 9 | . . . . . . . . . . . . . . . . . . . . 9 . . . . . . . . . . Tracker 2 | . . . . . . . . . . . . . . . . . . . . . . . . . . . . . 2 . Surgeon 2 | . . . . . . . . . . . . . . . . . . . . . . . 2 . . . . . . . Wasp 8 | . . . . . . . . . . . . . . . 2 . . . . . . 6 . . . . . . . . Thug 12 | . . . . . . . . . . . . . . . 4 . 1 . . . . 7 . . . . . . . . Savage 1 | . . . . . . . . . . . . . . . . . 1 . . . . . . . . . . . . . Butcher 4 | . . . . . . . . . . . . . . . 2 . . . . . . 2 . . . . . . . . Martyr 3 | . . . . . . . . . . . . . . . 1 . . . . . . 2 . . . . . . . . Best Kill Streak 18 | . . 12 . . 5 6 6 1 . 9 8 1 7 5 . 10 10 5 4 18 6 2 9 4 1 1 5 3 12 . Combat Bots Only 11 | . . 9 . . 4 3 4 1 . 4 8 . 7 3 . 8 7 4 1 11 5 2 6 4 1 . 3 3 10 . Max Kills in Single Turn 5 | . . 5 . . 4 2 2 1 . 4 4 1 1 3 1 3 2 2 1 3 3 1 3 2 1 1 2 1 2 . Gunslinging . | . . . . . . . . . . . . . . . . . . . . . . . . . . . . . . . Exploded 5 | . . 5 . . 4 2 2 1 . 3 4 . 1 2 . 3 2 . . 2 3 . 2 2 . . 2 1 2 . Melee 1 | . . . . . . . . . . . . . . . . . . . . . . . . . . . 1 . . . Uniques/NPCs Destroyed 1 | . . . . . . . . . . . . . . . . . . . . . . . . . 1 . . . . . A5 (-4/Lab) Combat | -11 -10 -9 -9 -9 -8 -8 -8 -8 -8 -6 -6 -6 -6 -5 -5 -5 -5 -5 -5 -5 -4 -4 -4 -4 -4 -3 -3 -2 -2 -2 -------- Run | Yrd Mat Mat Min Exi Min Mat Sto Rec Scr Fac Gar Fac Gar Fac Was Fac Ext Cet Arc Hub Fac Was Fac Arm Lab Res Qua Res Tes Sec Hostile Shots Fired 3050 | . 64 88 . . 9 49 14 2 . 175 204 108 90 31 . 112 125 11 25 353 109 . 311 410 6 61 62 118 466 47 Missed 1060 | . 19 32 . . 1 13 3 . . 69 70 32 38 13 . 29 37 3 5 75 41 . 126 170 2 13 24 37 195 13 Damage Taken 26735 | . 375 1104 47 . 84 668 150 55 . 1446 1233 938 381 215 . 1012 1116 152 260 2539 963 . 2412 2617 50 1424 471 1071 4920 1032 Core 3140 | . 121 151 47 . . 94 . . . 76 154 41 19 18 . 49 81 . 28 174 62 . 101 247 . 150 75 62 858 532 Absorbed by Shields 9649 | . . . . . 35 167 44 4 . 609 442 476 241 165 . 818 918 64 267 1438 312 . 431 837 51 518 488 672 652 . Ignored by Resistances 6561 | . . . . . . . . . . 93 462 39 67 . . . . . . 4335 . . 1274 . . . . 171 120 . Regen/Repaired (Parts) 6246 | . . 256 . . . 300 137 . 322 570 . . . . 6 491 43 . . . 1408 48 . . . 1357 295 337 676 . Core Remaining (%) 71 | 100 51 . . . 50 . . . 82 . . . 65 . . . . . . 65 . . . . 84 . 78 . . . Volleys Fired 1563 | . . 75 . . 6 33 10 1 . 51 170 8 38 28 31 122 87 9 55 157 84 125 130 110 29 12 46 60 83 3 Largest 2 | . . 2 . . 2 2 2 2 . 2 2 1 2 2 1 2 2 2 2 2 2 2 2 2 1 1 2 1 2 1 Hottest 300 | . . 66 . . 66 66 66 66 . 72 132 113 113 226 113 226 226 116 226 226 226 218 223 218 113 105 300 200 225 94 Shots Fired 2185 | . . 100 . . 13 61 17 2 . 92 203 9 42 31 32 155 152 16 79 269 113 178 233 142 30 12 52 61 88 3 Gun . | . . . . . . . . . . . . . . . . . . . . . . . . . . . . . . . Cannon 1583 | . . . . . . . . . . . 107 7 24 23 24 132 139 2 79 249 93 165 183 132 30 12 44 58 77 3 Launcher 512 | . . 100 . . 13 61 17 2 . 92 53 1 18 7 . 17 5 14 . 18 19 . 50 3 . . 8 3 11 . Special 90 | . . . . . . . . . . . 43 1 . 1 8 6 8 . . 2 1 13 . 7 . . . . . . Kinetic . | . . . . . . . . . . . . . . . . . . . . . . . . . . . . . . . Thermal 1242 | . . . . . . . . . . . 6 7 7 23 24 132 135 . 70 249 71 106 102 115 30 12 36 52 65 . Explosive 258 | . . 100 . . 13 56 17 2 . 42 4 . . . . 5 . . . 14 . . . . . . 3 . 2 . Electromagnetic 595 | . . . . . . 5 . . . 50 150 1 35 7 . 12 9 16 9 4 41 59 131 20 . . 13 9 21 3 Robot Hit Streak 25 | . . 10 . . 1 4 2 . . 7 25 11 14 15 6 9 11 8 18 22 22 19 13 21 12 15 9 13 8 . Robot Miss Streak 8 | . . 3 . . 1 3 2 1 . 4 2 1 3 2 3 2 4 . 4 6 4 3 6 4 . 1 1 2 8 . Penetration Max . | . . . . . . . . . . . . . . . . . . . . . . . . . . . . . . . Secondary Targets . | . . . . . . . . . . . . . . . . . . . . . . . . . . . . . . . Capacitor 116 | . . . . . . . . . . . . . . . . . . . . . . . . 50 30 12 . . 24 . Shots Hit Robots 1112 | . . 39 . . 1 28 5 3 4 29 117 3 15 14 31 65 97 2 50 154 36 127 113 78 3 4 23 32 39 . Core Hits 958 | . . 75 . . 16 61 25 5 . 110 90 2 18 18 12 55 50 25 22 108 45 35 92 31 2 1 19 19 22 . Critical Kills 17 | . . . . . . . . . . . . . . . . . 2 . 2 6 1 1 2 1 1 1 . . . . Critical Parts Destroyed 3 | . . . . . . . . . . . . . . . . . . . . . . . . . . . 3 . . . Critical Strikes 23 | . . . . . . . . . . . . . 1 . . . 2 . 2 6 1 1 3 1 1 1 3 1 . . Meltdown 17 | . . . . . . . . . . . . . . . . . 2 . 2 6 1 1 2 1 1 1 . . . . Destroy 3 | . . . . . . . . . . . . . . . . . . . . . . . . . . . 3 . . . Corrupt 3 | . . . . . . . . . . . . . 1 . . . . . . . . . 1 . . . . 1 . . Melee Attacks 37 | . . . . . . 3 . 3 4 . . . . . 9 . . . . . . . . . . . 7 8 3 . Impact 3 | . . . . . . 3 . . . . . . . . . . . . . . . . . . . . . . . . Slashing 27 | . . . . . . . . . . . . . . . 9 . . . . . . . . . . . 7 8 3 . Piercing . | . . . . . . . . . . . . . . . . . . . . . . . . . . . . . . . Sneak Attacks 18 | . . . . . . . . 3 4 . . . . . 9 . . . . . . . . . . . . 1 1 . Combat Hostiles . | . . . . . . . . . . . . . . . . . . . . . . . . . . . . . . . Follow-up Attacks . | . . . . . . . . . . . . . . . . . . . . . . . . . . . . . . . Damage Inflicted 72554 | . 22 3740 . . 755 2535 704 138 . 5887 5100 122 1090 1119 1544 5281 4803 1128 1982 10500 3555 4681 7310 3064 77 142 2508 2281 2486 . Guns . | . . . . . . . . . . . . . . . . . . . . . . . . . . . . . . . Cannons 36111 | . . . . . . . . . . . 1374 80 210 490 764 2458 3881 50 1982 6274 1567 4681 4631 2788 77 142 1383 1605 1674 . Explosions 34934 | . . 3740 . . 755 2535 704 138 . 5876 3726 32 880 629 . 2823 922 1078 . 4226 1988 . 2679 276 . . 804 492 631 . Melee 1466 | . . . . . . . . . . . . . . . 780 . . . . . . . . . . . 321 184 181 . Ramming 43 | . 22 . . . . . . . . 11 . 10 . . . . . . . . . . . . . . . . . . Kinetic . | . . . . . . . . . . . . . . . . . . . . . . . . . . . . . . . Thermal 32744 | . . . . . . . . . . 768 1055 80 144 490 764 2524 4135 183 1866 6274 1173 3075 3319 2568 77 142 1103 1690 1314 . Explosive 17414 | . . 3740 . . 755 2379 704 138 . 2655 102 . . 201 . 1951 . . . 3913 354 . . . . . 429 . 93 . Electromagnetic 20887 | . . . . . . 156 . . . 2453 3943 32 946 428 . 806 668 945 116 313 2028 1606 3991 496 . . 655 407 898 . Impact . | . . . . . . . . . . . . . . . . . . . . . . . . . . . . . . . Slashing 1466 | . . . . . . . . . . . . . . . 780 . . . . . . . . . . . 321 184 181 . Piercing . | . . . . . . . . . . . . . . . . . . . . . . . . . . . . . . . Highest Corruption 50 | . . 1 1 1 1 . . . . 5 17 21 21 1 1 8 8 8 9 11 7 7 10 21 21 . 8 6 50 50 Average Corruption 7 | . . 1 1 1 1 . . . . 3 15 17 21 1 1 4 8 8 7 5 2 7 8 17 7 . 5 4 11 17 Corruption Purged 17 | . . . . . . . . . . . . . . . . . . . 17 . . . . . . . . . . . Corruption Blocked . | . . . . . . . . . . . . . . . . . . . . . . . . . . . . . . . Effects 730 | . . 13 1 6 4 . . . . 27 123 22 37 . 7 42 92 14 22 26 15 41 93 64 18 . 12 9 42 . Message Errors 156 | . . 6 . 2 1 . . . . 3 25 4 10 . 2 10 19 1 4 . 7 13 22 12 3 . 1 1 10 . Matter Fused 165 | . . 3 1 2 . . . . . 9 30 4 7 . 1 14 21 3 2 6 3 6 18 17 7 . 2 2 7 . Heat Flow Errors 74 | . . 2 . 2 . . . . . 4 8 1 4 . . 3 10 3 3 3 . 4 12 7 . . 2 . 6 . Energy Discharges 95 | . . 1 . . . . . . . 4 15 5 5 . . 4 11 . 3 6 2 6 14 8 2 . 2 1 6 . Parts Rejected 12 | . . . . . . . . . . 1 2 2 . . . 1 . . . . . 2 2 . . . . . 2 . Parts Fused 8 | . . . . . . . . . . . 2 . 3 . . . 1 . . 1 . . . . . . 1 . . . Data Loss (minor) 96 | . . 1 . . . . . . . 4 15 5 4 . 3 4 16 4 1 3 1 3 10 8 4 . 3 2 5 . Data Loss (major) 35 | . . . . . 2 . . . . . 8 . . . . 1 6 2 3 2 1 2 3 3 1 . . . 1 . Misfires 33 | . . . . . 1 . . . . 2 7 1 3 . 1 1 1 . 1 . 1 2 5 3 1 . 1 2 . . Alerts 12 | . . . . . . . . . . . 3 . . . . 1 3 1 1 . . 1 1 1 . . . . . . Misdirections 5 | . . . . . . . . . . . 2 . . . . . . . . . . . . 1 . . . . 2 . Weapon Failures 39 | . . . . . . . . . . . 6 . 1 . . 3 4 . 4 5 . 2 6 4 . . . 1 3 . Overload Shots . | . . . . . . . . . . . . . . . . . . . . . . . . . . . . . . . Overflow Damage 3102 | . . 111 . . 32 54 . . . 234 18 . . 30 37 270 148 . 139 339 138 2 372 120 . 7 737 73 241 . Projectiles 1885 | . . . . . . . . . . . . . . 29 37 82 123 . 139 233 118 2 238 120 . 7 628 73 56 . Explosions 1010 | . . 111 . . 32 54 . . . 234 18 . . 1 . 188 25 . . 106 20 . 134 . . . 53 . 34 . Melee 207 | . . . . . . . . . . . . . . . . . . . . . . . . . . . 56 . 151 . Knockbacks . | . . . . . . . . . . . . . . . . . . . . . . . . . . . . . . . Impact . | . . . . . . . . . . . . . . . . . . . . . . . . . . . . . . . Kinetic . | . . . . . . . . . . . . . . . . . . . . . . . . . . . . . . . Secondary . | . . . . . . . . . . . . . . . . . . . . . . . . . . . . . . . Self-Inflicted Damage 2155 | . 9 313 . . 21 74 29 8 . 506 233 5 49 28 . 187 . . . . 85 . 217 115 . . 79 . 197 . Shots 76 | . . 11 . . 1 3 1 1 . 18 10 . 5 2 . 4 . . . . 4 . 5 3 . . 1 . 7 . Rammed 6 | . 4 . . . . . . . . 1 . 1 . . . . . . . . . . . . . . . . . . Targets Rammed 6 | . 4 . . . . . . . . 1 . 1 . . . . . . . . . . . . . . . . . . Kicked . | . . . . . . . . . . . . . . . . . . . . . . . . . . . . . . . Crushed . | . . . . . . . . . . . . . . . . . . . . . . . . . . . . . . . Highest Temperature 397 | . . 273 . 123 42 272 8 . . 242 300 196 178 286 294 303 245 221 365 259 315 214 322 350 323 195 188 83 397 . Average Temperature 81 | . . 44 . 58 18 108 8 . . 79 70 110 56 96 115 90 96 53 85 79 64 69 88 97 93 76 87 34 93 . Received Heat Transfer 2759 | . 6 303 . . . 128 58 7 . 409 159 170 66 40 . 88 180 . 16 525 42 . 211 154 . 36 27 53 18 63 Effects 17 | . . . . . . 1 . . . . . . . 3 . 2 3 . 1 . . . 3 1 1 . . . 2 . Shutdowns 1 | . . . . . . . . . . . . . . . . . . . . . . . . . 1 . . . . . Energy Bleed 4 | . . . . . . 1 . . . . . . . . . . . . . . . . 1 1 . . . . 1 . Interference 10 | . . . . . . . . . . . . . . 3 . 2 3 . . . . . 2 . . . . . . . Damage (minor) 2 | . . . . . . . . . . . . . . . . . . . 1 . . . . . . . . . 1 . Siege Activations . | . . . . . . . . . . . . . . . . . . . . . . . . . . . . . . . Robots Corrupted 75 | . . . . . . . . . . 6 11 . 7 . . 1 . 8 . 1 9 7 15 2 . . 2 2 4 . Combat Hostiles 67 | . . . . . . . . . . 6 10 . 7 . . 1 . 8 . 1 9 . 15 2 . . 2 2 4 . Parts Fried 169 | . . . . . . . . . . 14 28 . 14 2 . 7 3 8 . 2 19 11 43 3 . . 6 4 5 . Impact Corruptions . | . . . . . . . . . . . . . . . . . . . . . . . . . . . . . . . Robots Melted 21 | . . . . . . . . . . . . . . . . . 2 . 3 7 2 1 2 1 1 1 . 1 . . Combat Hostiles 17 | . . . . . . . . . . . . . . . . . 1 . 1 7 2 1 2 1 1 . . 1 . . Parts Melted 64 | . . . . . . . . . . . . . . . . 3 12 . 8 13 4 4 4 8 2 . 1 5 . . Heat Transferred 28250 | . . . . . . . . . . 937 1024 74 124 444 703 2270 3741 100 1739 5585 1075 2997 2174 2338 57 148 296 1308 1116 . Parts Sabotaged 4 | . . . . . . . . . . . . . . . . . . . . . 1 . . 3 . . . . . . Parts Stolen . | . . . . . . . . . . . . . . . . . . . . . . . . . . . . . . . Parts Stripped . | . . . . . . . . . . . . . . . . . . . . . . . . . . . . . . . Power Chain Reactions 42 | . . . . . . . . . . 12 13 . 1 1 . 2 3 1 . . 2 . 3 2 . . . . 2 . Alert | -11 -10 -9 -9 -9 -8 -8 -8 -8 -8 -6 -6 -6 -6 -5 -5 -5 -5 -5 -5 -5 -4 -4 -4 -4 -4 -3 -3 -2 -2 -2 ------- Run | Yrd Mat Mat Min Exi Min Mat Sto Rec Scr Fac Gar Fac Gar Fac Was Fac Ext Cet Arc Hub Fac Was Fac Arm Lab Res Qua Res Tes Sec Peak Influence 3278 | . 30 1124 413 . 169 551 636 263 . 1244 3278 1989 1755 1306 415 936 709 514 358 1239 946 250 590 661 . 90 293 208 293 174 Initial 1720 | . . 8 413 . . 56 232 184 . . 870 1720 1285 921 389 . 458 288 125 13 606 238 . 289 . . . 3 117 129 Average 520 | . 6 671 413 . 110 174 442 123 . 398 2088 1804 1502 1034 147 299 524 390 185 397 640 104 293 350 . 35 68 73 158 162 Maximum Alert Level 5 | . . 4 2 . . 2 2 1 . 4 5 5 5 4 2 3 3 2 1 4 3 1 2 2 . . 1 1 1 . Low Security (%) 37 | 100 100 12 . . 100 69 . 78 . 32 . . . . 64 54 . . 67 57 . 66 28 5 . 100 93 93 64 100 Level 1 18 | . . 9 . . . 14 34 21 . 30 . . . . 30 17 7 63 32 6 2 33 43 75 . . 6 6 35 . Level 2 22 | . . 27 100 . . 16 65 . . 19 . . . . 4 16 89 36 . 6 68 . 27 19 . . . . . . Level 3 8 | . . 46 . . . . . . . 14 2 . . 73 . 11 2 . . 19 29 . . . . . . . . . Level 4 4 | . . 3 . . . . . . . 3 30 . 50 26 . . . . . 9 . . . . . . . . . . Level 5 7 | . . . . . . . . . . . 66 100 49 . . . . . . . . . . . . . . . . . High Security . | . . . . . . . . . . . . . . . . . . . . . . . . . . . . . . . Max Security . | . . . . . . . . . . . . . . . . . . . . . . . . . . . . . . . Squads Dispatched 98 | . 2 3 . . . 13 5 . . 8 . 3 . 2 . 9 . . . 9 10 . 9 4 . 5 5 3 7 1 Investigation 19 | . 1 . . . . 6 2 . . 3 . . . . . 2 . . . . 1 . . . . 3 . . 1 . Extermination 26 | . . . . . . . . . . 3 . 1 . . . 2 . . . 2 3 . 6 3 . . 3 1 2 . Reinforcement 31 | . 1 2 . . . 5 1 . . . . . . 1 . 3 . . . 5 3 . 2 1 . 1 2 2 1 1 Assault 15 | . . 1 . . . 1 . . . 2 . 2 . 1 . 2 . . . 2 3 . 1 . . . . . . . Garrison 3 | . . . . . . 1 2 . . . . . . . . . . . . . . . . . . . . . . . Intercept 4 | . . . . . . . . . . . . . . . . . . . . . . . . . . 1 . . 3 . Searches Triggered . | . . . . . . . . . . . . . . . . . . . . . . . . . . . . . . . Construction Impeded 7 | . . . . . . 3 1 . . . . . . . . 1 . . . . 1 . . . . . . 1 . . Haulers Reinforced 1 | . . . . . . . . . . . . . . . . . . . . . . . 1 . . . . . . . Active Scanning Responses . | . . . . . . . . . . . . . . . . . . . . . . . . . . . . . . . Cargo Convoy Interrupts . | . . . . . . . . . . . . . . . . . . . . . . . . . . . . . . . Stealth | -11 -10 -9 -9 -9 -8 -8 -8 -8 -8 -6 -6 -6 -6 -5 -5 -5 -5 -5 -5 -5 -4 -4 -4 -4 -4 -3 -3 -2 -2 -2 --------- Run | Yrd Mat Mat Min Exi Min Mat Sto Rec Scr Fac Gar Fac Gar Fac Was Fac Ext Cet Arc Hub Fac Was Fac Arm Lab Res Qua Res Tes Sec Distress Signals 36 | . . 4 . . . 4 1 . . 1 . 1 . 1 . 1 3 2 . . 1 . 2 4 . 6 1 1 . 3 Communications Jammed 316 | . . . . . . . . . . 40 . . . 7 . 11 49 . 1 45 42 . 34 42 . 33 1 7 4 . Distress Signals 310 | . . . . . . . . . . 38 . . . 7 . 11 46 . 1 44 42 . 34 42 . 33 1 7 4 . Times Spotted 646 | . 8 47 . 2 6 23 16 3 . 48 46 21 17 19 5 32 32 9 25 61 44 3 58 30 1 24 13 12 22 19 Peak Tracking Total 18 | . 7 5 . 2 4 3 4 2 . 5 6 11 7 5 2 6 7 5 1 10 7 1 6 9 1 7 4 4 9 18 Tactical Retreats 30 | . 1 3 . . . 1 . . . 4 1 2 2 1 . 1 4 . . 3 2 . 1 4 . . . . . . Traps | -11 -10 -9 -9 -9 -8 -8 -8 -8 -8 -6 -6 -6 -6 -5 -5 -5 -5 -5 -5 -5 -4 -4 -4 -4 -4 -3 -3 -2 -2 -2 ------- Run | Yrd Mat Mat Min Exi Min Mat Sto Rec Scr Fac Gar Fac Gar Fac Was Fac Ext Cet Arc Hub Fac Was Fac Arm Lab Res Qua Res Tes Sec Traps Triggered 48 | . 1 1 1 . . 1 . . . . 16 . 7 4 . 3 5 . . 1 4 . 1 . . . 2 1 . . Indirectly 7 | . . . . . . . . . . . 5 . 2 . . . . . . . . . . . . . . . . . Trap Hack Attempts . | . . . . . . . . . . . . . . . . . . . . . . . . . . . . . . . Triggered . | . . . . . . . . . . . . . . . . . . . . . . . . . . . . . . . Disarmed . | . . . . . . . . . . . . . . . . . . . . . . . . . . . . . . . Reprogrammed . | . . . . . . . . . . . . . . . . . . . . . . . . . . . . . . . Reused 7 | . . . . . . 3 4 . . . . . . . . . . . . . . . . . . . . . . . Traps Reconfigurated 46 | . . . . . . 4 20 . . 19 3 . . . . . . . . . . . . . . . . . . . Traps Extracted 12 | . . . . . . 1 4 . . 7 . . . . . . . . . . . . . . . . . . . . Installed 2 | . . . . . . . 1 . . 1 . . . . . . . . . . . . . . . . . . . . Triggered 9 | . . . . . . 3 4 . . . . . . . . . 2 . . . . . . . . . . . . . Most Traps Carried 6 | . . . . . . 1 4 4 4 6 6 6 6 6 6 6 6 6 6 6 . . . . . . . . . . Machines | -11 -10 -9 -9 -9 -8 -8 -8 -8 -8 -6 -6 -6 -6 -5 -5 -5 -5 -5 -5 -5 -4 -4 -4 -4 -4 -3 -3 -2 -2 -2 ---------- Run | Yrd Mat Mat Min Exi Min Mat Sto Rec Scr Fac Gar Fac Gar Fac Was Fac Ext Cet Arc Hub Fac Was Fac Arm Lab Res Qua Res Tes Sec Machines Disabled 141 | . . 8 . . 3 6 6 . . 22 16 2 3 6 . 6 4 . 5 12 7 . 14 6 2 . 4 1 5 3 Max in Single Turn 4 | . . 2 . . 2 2 1 . . 4 2 2 1 4 . 3 2 . 1 1 4 . 4 2 1 . 1 1 1 1 Garrison Access 8 | . . . . . . 1 1 . . . . . . . . 1 . . . 2 2 . . . . . . . 1 . Garrison Relay 8 | . . . . . . . . . . . 6 . 2 . . . . . . . . . . . . . . . . . Phase Generator 1 | . . . . . . . . . . . 1 . . . . . . . . . . . . . . . . . . . Network Hub 2 | . . . . . . . . . . . . . . . . . . . . 2 . . . . . . . . . . Energy Cycler 1 | . . . . . . . . . . . . . . . . . 1 . . . . . . . . . . . . . Machines Repaired . | . . . . . . . . . . . . . . . . . . . . . . . . . . . . . . . Machines Dismantled 8 | . . . . . . . 4 . . . . . . . . . . . . 2 . . . . 1 . 1 . . . Machines Sabotaged . | . . . . . . . . . . . . . . . . . . . . . . . . . . . . . . . Overloaded Fab Kills . | . . . . . . . . . . . . . . . . . . . . . . . . . . . . . . . Hacking | -11 -10 -9 -9 -9 -8 -8 -8 -8 -8 -6 -6 -6 -6 -5 -5 -5 -5 -5 -5 -5 -4 -4 -4 -4 -4 -3 -3 -2 -2 -2 --------- Run | Yrd Mat Mat Min Exi Min Mat Sto Rec Scr Fac Gar Fac Gar Fac Was Fac Ext Cet Arc Hub Fac Was Fac Arm Lab Res Qua Res Tes Sec Machines Accessed 151 | . 1 13 1 2 . 14 12 15 1 13 3 6 1 . . 15 2 2 1 6 14 . 7 5 3 4 3 1 6 . Terminals 81 | . 1 9 . . . 10 8 6 . 5 3 3 1 . . 7 2 2 . 4 6 . 3 3 . 3 2 1 2 . Fabricators 8 | . . . . . . . . . . 1 . . . . . 2 . . . . 2 . 1 1 . . . . 1 . Repair Stations 17 | . . 2 . . . 2 1 . . 3 . . . . . 4 . . . . 2 . . 1 . 1 . . 1 . Recycling Units 20 | . . 1 . . . 2 2 7 . 2 . 1 . . . 1 . . . . 1 . 3 . . . . . . . Scanalyzers 6 | . . 1 . . . . . . . 1 . 1 . . . . . . . . 1 . . . . . 1 . 1 . Garrison Access 9 | . . . . . . . 1 . . 1 . 1 . . . 1 . . . 2 2 . . . . . . . 1 . Total Hacks 653 | . 4 35 1 2 . 51 33 63 9 32 8 17 1 . . 46 5 5 11 15 116 . 51 22 8 35 21 9 53 . Successful 380 | . 1 23 1 2 . 25 18 51 9 18 1 7 1 . . 25 3 4 11 10 66 . 23 4 8 20 14 7 28 . Failed 272 | . 3 12 . . . 25 15 12 . 14 7 10 . . . 21 2 1 . 5 50 . 28 18 . 15 7 2 25 . Catastrophic 32 | . . 2 . . . . . 1 . 3 1 2 . . . 5 . 1 . 1 8 . 4 2 . 1 1 . . . Database Lockouts 1 | . . . . . . 1 . . . . . . . . . . . . . . . . . . . . . . . . Manual 259 | . 4 18 . 1 . 32 23 24 . 10 3 4 . . . 24 5 . . 6 35 . 32 5 . 12 5 5 11 . Terminals 348 | . 4 21 . . . 39 24 19 . 8 8 8 1 . . 26 5 5 . 9 68 . 19 13 . 21 13 9 28 . Fabricators 39 | . . . . . . . . . . 1 . . . . . 6 . . . . 14 . 8 4 . . . . 6 . Repair Stations 85 | . . 9 . . . 8 4 . . 10 . . . . . 9 . . . . 18 . . 5 . 14 . . 8 . Recycling Units 77 | . . 3 . . . 4 4 20 . 9 . 4 . . . 3 . . . . 6 . 24 . . . . . . . Scanalyzers 30 | . . 2 . . . . . . . 2 . 3 . . . . . . . . 6 . . . . . 8 . 9 . Garrison Access 19 | . . . . . . . 1 . . 2 . 2 . . . 2 . . . 6 4 . . . . . . . 2 . Terminal Hacks 154 | . . 3 1 2 . 7 5 27 9 1 1 1 1 . . 4 . 4 11 3 27 . 4 3 8 7 5 7 13 . Record 56 | . . 1 . 1 . . . 24 9 . . . . . . . . 3 11 . . . . . 7 . . . . . Part Schematic 4 | . . . . . . . . . . . . . . . . . . . . . 1 . . . . 1 . 2 . . Robot Analysis 6 | . . . . . . 2 1 2 . . . . . . . . . . . . . . . . . 1 . . . . Prototype ID Bank 5 | . . . . . . 1 . . . . . . . . . . . . . . 2 . . . . 1 . . 1 . Open Door 4 | . . . 1 . . . 1 . . . . . 1 . . . . 1 . . . . . . . . . . . . Open DSF 1 | . . . . . . . . . . . . 1 . . . . . . . . . . . . . . . . . . Level Access Points 1 | . . . . . . . . . . . . . . . . . . . . . . . . . . 1 . . . . Branch Access Points 5 | . . . . . . . 1 . . . . . . . . 1 . . . . . . 1 . . 1 . 1 . . Emergency Access Points 5 | . . . . . . . . . . . 1 . . . . . . . . . 1 . . 1 . . 1 1 . . Terminal Index 3 | . . . . . . . . . . . . . . . . 1 . . . . 1 . . . . . . 1 . . Fabricator Index 1 | . . . . . . . . . . . . . . . . . . . . . . . . . . . . . 1 . Repair Station Index 2 | . . . . . . . . . . . . . . . . . . . . . 1 . . . . . . . 1 . Garrison Index 2 | . . . . . . . . . . 1 . . . . . . . . . . 1 . . . . . . . . . Alert Level 2 | . . . . . . . . 1 . . . . . . . . . . . . . . . . . . . . 1 . Unreport Threat 20 | . . 1 . . . 1 1 . . . . . . . . . . . . . 3 . 3 2 . 2 2 2 3 . Locate Traps 8 | . . . . . . . . . . . . . . . . 1 . . . 1 5 . . . . . . . 1 . Dispatch Records 1 | . . . . . . 1 . . . . . . . . . . . . . . . . . . . . . . . . Maintenance Status 1 | . . . . . . . . . . . . . . . . . . . . . 1 . . . . . . . . . Security Status 3 | . . . . . . . . . . . . . . . . . . . . . 1 . . . . . 1 . 1 . Surveillance Status 1 | . . . . . . 1 . . . . . . . . . . . . . . . . . . . . . . . . Patrol Status 1 | . . . . . . . . . . . . . . . . . . . . . 1 . . . . . . . . . Recall Extermination 1 | . . . . . . . . . . . . . . . . . . . . . 1 . . . . . . . . . Recall Reinforcements 1 | . . . . . . . . . . . . . . . . . . . . . . . . . . . . . 1 . Hauler Manifests 3 | . . . . . . 1 1 . . . . . . . . . . . . . 1 . . . . . . . . . Registered Components 2 | . . . . . . . . . . . . . . . . . . . . . 1 . . . . . . . 1 . Registered Prototypes 2 | . . . . . . . . . . . . . . . . . . . . . 1 . . . . . 1 . . . Zone Layout 11 | . . 1 . . . . . . . . . . . . . 1 . . . 2 5 . . . . . . . 2 . Derelict Proto ID Bank 1 | . . . . 1 . . . . . . . . . . . . . . . . . . . . . . . . . . Release Object 1 | . . . . . . . . . . . . . . . . . . . . . . . . . 1 . . . . . Fabricator Hacks 9 | . . . . . . . . . . . . . . . . 1 . . . . 4 . 2 . . . . . 2 . Network Status 2 | . . . . . . . . . . . . . . . . . . . . . 1 . 1 . . . . . . . Load Schematic 2 | . . . . . . . . . . . . . . . . . . . . . 1 . . . . . . . 1 . Build 5 | . . . . . . . . . . . . . . . . 1 . . . . 2 . 1 . . . . . 1 . Repair Station Hacks 53 | . . 8 . . . 5 4 . . 6 . . . . . 5 . . . . 11 . . 1 . 8 . . 5 . Scan Component 29 | . . 4 . . . 3 2 . . 3 . . . . . 3 . . . . 6 . . 1 . 4 . . 3 . Repair 24 | . . 4 . . . 2 2 . . 3 . . . . . 2 . . . . 5 . . . . 4 . . 2 . Recycling Unit Hacks 21 | . . 3 . . . 1 . 7 . 2 . 1 . . . 1 . . . . 1 . 5 . . . . . . . Process 1 | . . 1 . . . . . . . . . . . . . . . . . . . . . . . . . . . . Report Inventory 1 | . . 1 . . . . . . . . . . . . . . . . . . . . . . . . . . . . Retrieve Matter 4 | . . 1 . . . . . . . 1 . . . . . . . . . . . . 2 . . . . . . . Retrieve Components 15 | . . . . . . 1 . 7 . 1 . 1 . . . 1 . . . . 1 . 3 . . . . . . . Scanalyzer 18 | . . 2 . . . . . . . 1 . 1 . . . . . . . . 3 . . . . . 8 . 3 . Insert Component 11 | . . 1 . . . . . . . 1 . 1 . . . . . . . . 2 . . . . . 4 . 2 . Analyze 7 | . . 1 . . . . . . . . . . . . . . . . . . 1 . . . . . 4 . 1 . Garrison Access Hacks 15 | . . . . . . . 1 . . 1 . 2 . . . 2 . . . 4 4 . . . . . . . 1 . Unlock Access 2 | . . . . . . . . . . 1 . 1 . . . . . . . . . . . . . . . . . . Seal Access 7 | . . . . . . . 1 . . . . . . . . 1 . . . 2 2 . . . . . . . 1 . Coupler Status 6 | . . . . . . . . . . . . 1 . . . 1 . . . 2 2 . . . . . . . . . Unauthorized Hacks 110 | . 1 7 . . . 12 8 17 . 7 . 2 . . . 12 3 . . 3 16 . 12 . . 5 1 . 4 . Terminals 68 | . 1 7 . . . 10 7 10 . 1 . 2 . . . 9 3 . . 2 9 . . . . 3 1 . 3 . Track 5 | . . . . . . 1 . 1 . . . 1 . . . . . . . . 1 . . . . . 1 . . . Assimilate 1 | . . . . . . . . . . . . . . . . 1 . . . . . . . . . . . . . . Botnet 18 | . . 2 . . . 2 2 2 . 1 . . . . . 2 1 . . 2 2 . . . . 1 . . 1 . Disrupt 2 | . . . . . . . . 1 . . . 1 . . . . . . . . . . . . . . . . . . Operators 7 | . . . . . . 1 . 1 . . . . . . . 1 1 . . . 1 . . . . 1 . . 1 . Skim 35 | . 1 5 . . . 6 5 5 . . . . . . . 5 1 . . . 5 . . . . 1 . . 1 . Fabricators 8 | . . . . . . . . . . 1 . . . . . 1 . . . . 4 . 2 . . . . . . . Report 1 | . . . . . . . . . . . . . . . . . . . . . 1 . . . . . . . . . Prioritize 1 | . . . . . . . . . . . . . . . . . . . . . 1 . . . . . . . . . Liberate 2 | . . . . . . . . . . . . . . . . . . . . . 1 . 1 . . . . . . . Haulers 4 | . . . . . . . . . . 1 . . . . . 1 . . . . 1 . 1 . . . . . . . Repair Stations 2 | . . . . . . . . . . . . . . . . . . . . . . . . . . 2 . . . . Mechanics 1 | . . . . . . . . . . . . . . . . . . . . . . . . . . 1 . . . . Patch 1 | . . . . . . . . . . . . . . . . . . . . . . . . . . 1 . . . . Recycling Units 29 | . . . . . . 2 1 7 . 4 . . . . . 2 . . . . 3 . 10 . . . . . . . Monitor 3 | . . . . . . . . . . 1 . . . . . . . . . . . . 2 . . . . . . . Reject 6 | . . . . . . . . . . 1 . . . . . 1 . . . . 1 . 3 . . . . . . . Recyclers 5 | . . . . . . . . . . 1 . . . . . 1 . . . . 1 . 2 . . . . . . . Mask 5 | . . . . . . . . . . 1 . . . . . . . . . . 1 . 3 . . . . . . . Tunnel 10 | . . . . . . 2 1 7 . . . . . . . . . . . . . . . . . . . . . . Scanalyzers 1 | . . . . . . . . . . . . . . . . . . . . . . . . . . . . . 1 . Researchers 1 | . . . . . . . . . . . . . . . . . . . . . . . . . . . . . 1 . Garrison Access 2 | . . . . . . . . . . 1 . . . . . . . . . 1 . . . . . . . . . . Broadcast 1 | . . . . . . . . . . 1 . . . . . . . . . . . . . . . . . . . . Restock 1 | . . . . . . . . . . . . . . . . . . . . 1 . . . . . . . . . . Data Cores Recovered . | . . . . . . . . . . . . . . . . . . . . . . . . . . . . . . . Used . | . . . . . . . . . . . . . . . . . . . . . . . . . . . . . . . Hacking Detections 116 | . 1 12 . . . 14 8 5 . 12 3 4 1 . . 14 2 . . 4 11 . 7 5 . 4 3 1 5 . Full Trace Events 14 | . . 1 . . . 3 . . . 3 2 . . . . 2 . . . . 1 . . . . 1 . . 1 . Feedback Events 1 | . . . . . . . . . . . 1 . . . . . . . . . . . . . . . . . . . Corruption 1 | . . . . . . . . . . . 1 . . . . . . . . . . . . . . . . . . . Feedback Blocked . | . . . . . . . . . . . . . . . . . . . . . . . . . . . . . . . Robot Schematics Acquired . | . . . . . . . . . . . . . . . . . . . . . . . . . . . . . . . Robots Built 6 | . . . . . . . . . . . . . . . . . . . . . 3 . 3 . . . . . . . Authchips . | . . . . . . . . . . . . . . . . . . . . . . . . . . . . . . . Time 186 | . . . . . . . . . . . . . . . . . . . . . 93 . 93 . . . . . . . Total Robot Build Rating 42 | . . . . . . . . . . . . . . . . . . . . . 21 . 21 . . . . . . . Part Schematics Acquired 11 | . . 1 . . . . . . . . . . . . . . . . . . 2 . . . . 1 4 2 1 . Parts Built 6 | . . . . . . . . . . . . . . . . 2 . . . . 2 . . . . . . . 2 . Authchips . | . . . . . . . . . . . . . . . . . . . . . . . . . . . . . . . Time 138 | . . . . . . . . . . . . . . . . 46 . . . . 46 . . . . . . . 46 . Total Part Build Rating 54 | . . . . . . . . . . . . . . . . 18 . . . . 18 . . . . . . . 18 . Parts Repaired 24 | . . 4 . . . 2 2 . . 3 . . . . . 2 . . . . 5 . . . . 4 . . 2 . Time 959 | . . 116 . . . 70 76 . . 108 . . . . . 92 . . . . 317 . . . . 116 . . 64 . Parts Recycled . | . . . . . . . . . . . . . . . . . . . . . . . . . . . . . . . Recycled Matter 302 | . . 302 . . . . . . . . . . . . . . . . . . . . . . . . . . . . Retrieved Matter 539 | . . 413 . . . . . . . . . . . . . . . . . . . . 126 . . . . . . . Retrieved Components 42 | . . . . . . 9 . 12 . 1 . 3 . . . 3 . . . . . . 14 . . . . . . . Parts Scanalyzed 8 | . . 1 . . . . . . . . . 1 . . . . . . . . 1 . . . . . 4 . 1 . Part Schematics Acquired 7 | . . 1 . . . . . . . . . . . . . . . . . . 1 . . . . . 4 . 1 . Parts Damaged 2 | . . . . . . . . . . . . . . . . . . . . . 1 . . . . . 1 . . . Bothacking | -11 -10 -9 -9 -9 -8 -8 -8 -8 -8 -6 -6 -6 -6 -5 -5 -5 -5 -5 -5 -5 -4 -4 -4 -4 -4 -3 -3 -2 -2 -2 ------------ Run | Yrd Mat Mat Min Exi Min Mat Sto Rec Scr Fac Gar Fac Gar Fac Was Fac Ext Cet Arc Hub Fac Was Fac Arm Lab Res Qua Res Tes Sec Used RIF Installer 1 | . . . . . . . . . . . 1 . . . . . . . . . . . . . . . . . . . Robots Hacked 31 | . . . . . . . . 3 4 . 1 . . 1 7 3 . . . 1 1 10 . . . . . . . . Non-combat 8 | . . . . . . . . 2 . . . . . 1 . 3 . . . . 1 1 . . . . . . . . Combat 23 | . . . . . . . . 1 4 . 1 . . . 7 . . . . 1 . 9 . . . . . . . . Robot Hacks Applied 34 | . . . . . . . . 3 4 . 2 . . 1 7 5 . . . 1 1 10 . . . . . . . . parse_system 16 | . . . . . . . . 3 4 . 2 . . . 2 1 . . . . . 4 . . . . . . . . find_chute 2 | . . . . . . . . . . . . . . 1 . . . . . . 1 . . . . . . . . . find_station 2 | . . . . . . . . . . . . . . . . 2 . . . . . . . . . . . . . . map_route 1 | . . . . . . . . . . . . . . . . 1 . . . . . . . . . . . . . . mark_security 1 | . . . . . . . . . . . . . . . . 1 . . . . . . . . . . . . . . ignore_targets 11 | . . . . . . . . . . . . . . . 5 . . . . . . 6 . . . . . . . . formatsys_high 1 | . . . . . . . . . . . . . . . . . . . . 1 . . . . . . . . . . Relay Couplers Released 45 | . . . . . . 2 . . . . 26 . 8 . . . . . . 8 1 . . . . . . . . . Machine Destruction 38 | . . . . . . 2 . . . . 23 . 8 . . . . . . 4 1 . . . . . . . . . Programmers 7 | . . . . . . . . . . . 3 . . . . . . . . 4 . . . . . . . . . . Attached 4 | . . . . . . . . . . . . . . . 1 . . . . 2 . 1 . . . . . . . . Fabnet Peak Effective % . | . . . . . . . . . . . . . . . . . . . . . . . . . . . . . . . Robots Rewired 28 | . . . . . . . . 4 . . 17 . . . . . 4 . . . . . . 3 . . . . . . Allies Hacked 2 | . . . . . . . . . . . . . . . . 1 . . . . 1 . . . . . . . . . Hacks Repelled . | . . . . . . . . . . . . . . . . . . . . . . . . . . . . . . . Allies | -11 -10 -9 -9 -9 -8 -8 -8 -8 -8 -6 -6 -6 -6 -5 -5 -5 -5 -5 -5 -5 -4 -4 -4 -4 -4 -3 -3 -2 -2 -2 -------- Run | Yrd Mat Mat Min Exi Min Mat Sto Rec Scr Fac Gar Fac Gar Fac Was Fac Ext Cet Arc Hub Fac Was Fac Arm Lab Res Qua Res Tes Sec Total Allies 90 | . . . . . . . 10 4 . . 18 . 2 . 20 1 6 . . 1 3 19 3 3 . . . . . . Largest Group 19 | . . . . . . . 10 4 4 4 9 3 2 . 19 3 4 . . 1 3 19 3 3 . . . . . . Highest-Rated Group 702 | . . . . . . . 173 54 54 54 338 129 84 . 702 77 99 . . 30 144 702 144 195 . . . . . . Highest-Rated Ally 65 | . . . . . . . 29 21 17 17 46 43 46 . 50 26 39 . . 30 48 50 48 65 . . . . . . Total Orders 10 | . . . . . . . . 2 . . . . . . . . . . . . . . . 5 . 3 . . . . STAY 2 | . . . . . . . . . . . . . . . . . . . . . . . . 2 . . . . . . FOLLOW 2 | . . . . . . . . . . . . . . . . . . . . . . . . 2 . . . . . . GUARD 1 | . . . . . . . . . . . . . . . . . . . . . . . . 1 . . . . . . PICKUP 1 | . . . . . . . . 1 . . . . . . . . . . . . . . . . . . . . . . COLLECT 1 | . . . . . . . . 1 . . . . . . . . . . . . . . . . . . . . . . EXPLORE 2 | . . . . . . . . . . . . . . . . . . . . . . . . . . 2 . . . . RETURN 1 | . . . . . . . . . . . . . . . . . . . . . . . . . . 1 . . . . Ally Attacks 389 | . . . . . . . 96 6 . 25 16 23 5 . 158 . 13 . . 5 20 . 22 . . . . . . . Total Damage 9626 | . . . . . . . 1130 155 . 354 177 580 189 . 5140 . 275 . . 151 546 . 929 . . . . . . . Kills 39 | . . . . . . . 17 2 . 2 1 7 . . 7 . . . . 1 2 . . . . . . . . . Allies Corrupted 8 | . . . . . . . . . . . . . . . . . . . . . . 7 1 . . . . . . . Allies Melted 1 | . . . . . . . . . . . . . . . . . 1 . . . . . . . . . . . . . Intel | -11 -10 -9 -9 -9 -8 -8 -8 -8 -8 -6 -6 -6 -6 -5 -5 -5 -5 -5 -5 -5 -4 -4 -4 -4 -4 -3 -3 -2 -2 -2 ------- Run | Yrd Mat Mat Min Exi Min Mat Sto Rec Scr Fac Gar Fac Gar Fac Was Fac Ext Cet Arc Hub Fac Was Fac Arm Lab Res Qua Res Tes Sec Robot Analysis Total 6 | . . . . . . 2 1 2 . . . . . . . . . . . . . . . . . 1 . . . . Derelict Logs Recovered 1 | . . . 1 . . . . . . . . . . . . . . . . . . . . . . . . . . . Drone Launches 3 | . . . . . . . . . . . . . . . . . . . . . . . . . . 3 . . . . Drone Recoveries 1 | . . . . . . . . . . . . . . . . . . . . . . . . . . 1 . . . . Exploration | -11 -10 -9 -9 -9 -8 -8 -8 -8 -8 -6 -6 -6 -6 -5 -5 -5 -5 -5 -5 -5 -4 -4 -4 -4 -4 -3 -3 -2 -2 -2 ------------- Run | Yrd Mat Mat Min Exi Min Mat Sto Rec Scr Fac Gar Fac Gar Fac Was Fac Ext Cet Arc Hub Fac Was Fac Arm Lab Res Qua Res Tes Sec Turns Passed 38816 | 45 73 2090 319 794 748 2794 1654 1609 1790 2279 2902 529 755 420 1142 1814 2444 532 1008 1762 1998 1196 2288 1261 696 823 1189 717 1010 135 Spaces Moved 19076 | 38 76 1658 265 633 554 1712 853 955 1166 1057 1353 273 349 179 482 703 1008 241 403 529 832 451 782 468 307 371 490 256 457 175 Core 202 | 2 . . . . . . . . . . . . . . . . . . . . . . . . . . . . 115 85 Treads . | . . . . . . . . . . . . . . . . . . . . . . . . . . . . . . . Legs . | . . . . . . . . . . . . . . . . . . . . . . . . . . . . . . . Wheels 18784 | 36 76 1658 265 633 554 1712 853 955 1166 1057 1353 273 349 179 482 703 1008 241 403 529 832 451 782 468 307 371 490 256 342 . Hover . | . . . . . . . . . . . . . . . . . . . . . . . . . . . . . . . Flight . | . . . . . . . . . . . . . . . . . . . . . . . . . . . . . . . Fastest Speed 50 | 50 90 90 110 110 125 125 125 155 95 165 160 175 160 175 175 175 205 205 190 190 160 175 210 163 180 163 190 190 50 50 Average Speed 164 | 90 91 104 116 121 125 130 148 155 149 180 178 175 174 175 176 201 205 205 204 202 190 192 210 187 183 188 190 193 161 127 Slowest Speed 290 | 100 100 120 145 125 125 140 155 155 165 285 195 175 175 175 190 280 205 205 205 205 205 210 210 290 197 250 210 210 210 200 Overloaded Moves . | . . . . . . . . . . . . . . . . . . . . . . . . . . . . . . . Propulsion Burnouts . | . . . . . . . . . . . . . . . . . . . . . . . . . . . . . . . Robots Hopped . | . . . . . . . . . . . . . . . . . . . . . . . . . . . . . . . Cave-ins Triggered . | . . . . . . . . . . . . . . . . . . . . . . . . . . . . . . . Teleports 1 | . . . . . . . . . . . . . . . . . . . . . . . . . 1 . . . . . Microwarps 8 | . . . . . . . . . . . . . . . . . . . . . . . . . . . . . . 8 Exploration Rate (%) 58 | 3 23 99 87 71 99 96 88 99 59 38 97 11 49 11 96 23 96 76 97 57 16 96 22 32 99 19 63 10 61 15 Regions Visited 30 Branch Regions 15 Pre-discovered Areas 22 | . . 1 1 1 . 4 3 8 . . . . . . . 2 . . . . 2 . . . . . . . . . Known Exits Taken 14 | . . . . . 1 1 1 1 1 1 . 1 . . . 1 . . . 1 . . 1 . 1 1 1 1 . . Unknown Exits Taken 10 | 1 1 1 1 1 . . . . . . . . . . . . 1 1 1 . . . . 1 . . . . 1 . Scrap Searched 5 | . . . 3 . 1 . . . 1 . . . . . . . . . . . . . . . . . . . . . Spaces Dug 777 | . . 79 . . 24 50 45 . . 221 33 4 . 5 . 112 . . 2 33 29 5 13 24 . 6 15 28 49 . Terrain Destroyed 2714 | . . 649 . . 79 344 121 14 . 366 179 4 8 25 5 217 43 16 10 131 62 23 75 63 . 8 111 62 99 . Melee 12 | . . . . . . 1 . . . . . . . . . . . . . . . . . . . . 2 7 2 . Projectile 420 | . . . . . . . . . . . . 4 2 9 5 65 28 . 10 63 34 23 27 44 . 8 42 25 31 . AOE 2282 | . . 649 . . 79 343 121 14 . 366 179 . 6 16 . 152 15 16 . 68 28 . 48 19 . . 67 30 66 . Terrain Rammed . | . . . . . . . . . . . . . . . . . . . . . . . . . . . . . . . Walls Destroyed . | . . . . . . . . . . . . . . . . . . . . . . . . . . . . . . . Machines Disabled . | . . . . . . . . . . . . . . . . . . . . . . . . . . . . . . . Actions | -11 -10 -9 -9 -9 -8 -8 -8 -8 -8 -6 -6 -6 -6 -5 -5 -5 -5 -5 -5 -5 -4 -4 -4 -4 -4 -3 -3 -2 -2 -2 --------- Run | Yrd Mat Mat Min Exi Min Mat Sto Rec Scr Fac Gar Fac Gar Fac Was Fac Ext Cet Arc Hub Fac Was Fac Arm Lab Res Qua Res Tes Sec Total 24422 | 45 79 1914 276 661 597 2201 1170 1085 1212 1324 1674 317 453 253 743 945 1238 269 525 918 1137 689 1184 774 426 496 664 394 650 109 Wait 1802 | . . 87 3 . 35 386 243 82 5 107 11 1 3 . 172 22 60 1 33 107 85 68 77 76 24 39 27 14 31 3 Move 18966 | 37 76 1657 264 632 553 1711 852 954 1165 1056 1351 272 348 179 481 702 1007 240 402 528 832 450 781 467 306 370 489 255 456 93 Hop . | . . . . . . . . . . . . . . . . . . . . . . . . . . . . . . . Pick Up 348 | 2 . 30 2 11 . 12 7 4 12 24 26 8 6 2 11 17 9 4 2 21 28 11 22 21 14 13 13 10 6 . Fast Attach 200 | 6 . 18 2 4 . 6 3 . 4 3 7 5 2 2 4 7 5 2 11 1 7 5 13 21 12 15 11 4 16 4 Attach 185 | . . 5 . . . 6 . . 5 15 10 . 4 2 7 7 4 1 1 21 13 7 9 11 7 9 14 8 16 3 Detach 59 | . . 2 . . . 3 . . 1 3 4 . . 2 1 1 1 2 4 3 3 1 2 . 1 5 7 1 9 3 Swap 594 | . . 11 1 1 2 24 24 1 6 45 25 10 6 12 7 36 19 6 7 56 44 7 123 43 3 12 25 22 16 . Drop 401 | . . 29 4 13 1 17 6 5 10 18 23 12 4 3 20 23 10 4 10 18 17 15 27 25 21 21 19 12 14 . Fire 1563 | . . 75 . . 6 33 10 1 . 51 170 8 38 28 31 122 87 9 55 157 84 125 130 110 29 12 46 60 83 3 Melee 37 | . . . . . . 3 . 3 4 . . . . . 9 . . . . . . . . . . . 7 8 3 . Ram 5 | . 3 . . . . . . . . 1 . 1 . . . . . . . . . . . . . . . . . . Kick . | . . . . . . . . . . . . . . . . . . . . . . . . . . . . . . . Crush . | . . . . . . . . . . . . . . . . . . . . . . . . . . . . . . . Escape Stasis 179 | . . . . . . . . . . . 46 . 42 23 . 8 36 . . . 24 . . . . . . . . . Rewire 38 | . . . . . . . 2 35 . . 1 . . . . . . . . . . . . . . . . . . . Trap 2 | . . . . . . . 1 . . 1 . . . . . . . . . . . . . . . . . . . . Miscellaneous 43 | . . . . . . . 22 . . . . . . . . . . . . 6 . . . . 9 . 6 . . . Route ------- -11/Scrapyard -10/Materials -9/Materials (discovered 5 exits: *Mat x3 / *Min x2) -9/Mines (discovered 4 exits: *Mat x2 / *Exi / [*Zio]) -9/Exiles -8/Mines (discovered 2 exits: *Mat x2) -8/Materials (discovered 4 exits: *Fac x3 / *Sto) -8/Storage (discovered 2 exits: *Fac / *Rec) -8/Recycling (discovered 2 exits: *Fac / *Scr) -8/Scraptown -6/Factory (discovered 5 exits: [*Fac x2] / Low x2 / Gar) -6/Garrison (discovered 3 exits: *Fac x3) -6/Factory -6/Garrison -5/Factory -5/Waste -5/Factory (discovered 8 exits: *Fac x4 / Upp x2 / *Ext x2) -5/Extension (discovered 3 exits: *Fac x2 / *Cet) -5/Cetus -5/Archives (discovered 3 exits: *Fac / *Hub x2) -5/Hub_04(d) -4/Factory (discovered 3 exits: Res / *Upp x2) -4/Waste -4/Factory (discovered 4 exits: *Res / Upp x2 / *Arm) -4/Armory -4/Lab -3/Research (discovered 5 exits: Res x3 / *Qua x2) -3/Quarantine -2/Research (discovered 2 exits: *Tes x2) -2/Testing -2/Section 7 History --------- Turn | Location | Event 10 | -11/Scrapyard | Discovered new exit (range 16) 46 | -11/Scrapyard | Entered Materials 104 | -10/Materials | Discovered new exit (range 16) 119 | -10/Materials | Entered another Materials area 119 | -9/Materials | Evolved 2 slots: Utility x2 231 | -9/Materials | Repaired Com. Wheel 311 | -9/Materials | Build established: Mutant 413 | -9/Materials | Destroyed 9 combat bots 683 | -9/Materials | Discovered new exit (range 15) 709 | -9/Materials | Discovered new exit (range 16) 1048 | -9/Materials | Discovered new exit (range 10) 1214 | -9/Materials | Learned Storage stockpile data 1317 | -9/Materials | Discovered new exit (range 14) 1319 | -9/Materials | Loaded intel: 11 trap records 1359 | -9/Materials | Identified exit to Materials 1359 | -9/Materials | Learned location of 2 exits from Materials 1409 | -9/Materials | Learned Storage interactive machine intel 1420 | -9/Materials | Learned Storage trap positions 1564 | -9/Materials | Learned location of 3 exits from Materials 1950 | -9/Materials | Repaired Med. Armor Plating? 1972 | -9/Materials | Repaired Med. Armor Plating? 2002 | -9/Materials | Repaired Com. Wheel? 2119 | -9/Materials | First assault squad dispatched 2209 | -9/Materials | Entered Mines 2212 | -9/Mines | A Derelict revealed a hidden shortcut to a safe place 2218 | -9/Mines | Met a Derelict bent on vengeance 2225 | -9/Mines | Learned location of Storage (-8) 2493 | -9/Mines | Met a Derelict who couldn't figure out how to use a Trap Extractor 2523 | -9/Mines | Deemed a non-threat by the Exiles lab entrance 2523 | -9/Mines | Discovered new exit (range 5) 2528 | -9/Mines | Entered Exiles 2556 | -9/Exiles | Met 8R-AWN 2575 | -9/Exiles | Met EX-HEX 2619 | -9/Exiles | Met EX-DEC 2633 | -9/Exiles | Learned location of Zion (-7) 2740 | -9/Exiles | Discovered new exit (range 11) 3047 | -9/Exiles | Met EX-BIN 3065 | -9/Exiles | Aligned with FarCom system 3066 | -9/Exiles | Given EX-Vault access code 3097 | -9/Exiles | Opened EX-Vault 3103 | -9/Exiles | Found PSU Rigger 3109 | -9/Exiles | Found Lightpack 2.0 3137 | -9/Exiles | Warned to stay clear of 0b10 Research branches 3153 | -9/Exiles | Exiles lab attacked by MAIN.C 3193 | -9/Exiles | Found Trap Reconfigurator 3322 | -9/Exiles | Stole three prototypes: Lightpack 2.0, Trap Reconfigurator, PSU Rigger 3322 | -9/Exiles | Entered Mines 4070 | -8/Mines | Entered Materials 4070 | -8/Materials | Evolved 2 slots: Utility x2 4071 | -8/Materials | Identified exit to Storage 4071 | -8/Materials | Identified exit to Factory 5057 | -8/Materials | Learned Storage stockpile data 5145 | -8/Materials | Central database locked down 5228 | -8/Materials | Garrison activated, responded to threat 5243 | -8/Materials | Learned location of 1 exit from Lower Caves 5287 | -8/Materials | Learned location of 2 exits from Lower Caves 6421 | -8/Materials | Met 7R-MNS 6602 | -8/Materials | Repaired Hvy. Armor Plating 6662 | -8/Materials | Repaired Rocket Launcher 6864 | -8/Materials | Entered Storage 6865 | -8/Storage | Loaded intel: 27 trap records 6867 | -8/Storage | Loaded intel: 17 interactive machine locations 7013 | -8/Storage | Discovered new exit (range 4) 7337 | -8/Storage | Assisted by bots powering up and referring to "LRC-V3" 7642 | -8/Storage | Build established: Commander-Mutant 8069 | -8/Storage | Discovered exit to Factory (range 15) 8180 | -8/Storage | Identified exit to Recycling 8234 | -8/Storage | Learned Factory trap positions 8272 | -8/Storage | Learned location of Lower Caves (-7) 8282 | -8/Storage | Repaired Hrd. Medium Armor Plating 8298 | -8/Storage | Learned Factory emergency access door positions 8319 | -8/Storage | Learned Factory security intel 8323 | -8/Storage | Repaired Hvy. Armor Plating 8335 | -8/Storage | Learned 2 Lower Caves zone layouts 8363 | -8/Storage | Learned Factory security intel 8399 | -8/Storage | Learned Factory fabricator intel 8482 | -8/Storage | Lost 4 allies 8518 | -8/Storage | Entered Recycling 8519 | -8/Recycling | Met a Zionite searching for Scraptown 8519 | -8/Recycling | Joined Warlord attack on 0b10 via Recycling 8729 | -8/Recycling | Build established: Mutant 9063 | -8/Recycling | Scanned before Scraplab entrance 9357 | -8/Recycling | Learned Factory emergency access door positions 9392 | -8/Recycling | Learned 4 Factory zone layouts 9416 | -8/Recycling | Identified exit to Factory 9437 | -8/Recycling | Identified exit to Scraptown 9444 | -8/Recycling | Learned Factory repair station intel 9459 | -8/Recycling | Learned 2 Lower Caves zone layouts 9482 | -8/Recycling | Learned 2 Lower Caves zone layouts 10099 | -8/Recycling | Entered Scraplab 10126 | -8/Recycling | Build established: Commander-Mutant 10127 | -8/Recycling | Entered Scraptown 10127 | -8/Scraptown | Accompanied by 4 allies 10599 | -8/Scraptown | Discovered exit to Factory (range 5) 10729 | -8/Scraptown | Visited IN-MT5's Study 10757 | -8/Scraptown | Visited Spacefarers 11109 | -8/Scraptown | Visited Fellowship of the Rings 11141 | -8/Scraptown | Visited CR-KLE's Repair Center 11184 | -8/Scraptown | Visited Junk Repository 11253 | -8/Scraptown | Visited The Evicted 11301 | -8/Scraptown | Turned away by UFD registrar 11301 | -8/Scraptown | Turned away by UFD registrar 11311 | -8/Scraptown | Visited Red Mages 11784 | -8/Scraptown | CR-KLE repaired 9 parts 11917 | -8/Scraptown | Entered Factory 11917 | -6/Factory | Accompanied by 4 allies 11917 | -6/Factory | Evolved 4 slots: Power x2, Utility x2 11918 | -6/Factory | Identified exit to Lower Caves 11919 | -6/Factory | FarCom data flow suspended 11920 | -6/Factory | Loaded intel: 91 trap records 11923 | -6/Factory | Loaded intel: 6 fabricator locations 11924 | -6/Factory | Loaded intel: 6 repair station locations 12472 | -6/Factory | Discovered new exit (range 6) 12683 | -6/Factory | Build established: Mutant 13004 | -6/Factory | Discovered new exit (range 5) 13469 | -6/Factory | Repaired Hvy. Armor Plating? 13525 | -6/Factory | Repaired Arm. Wheel? 13667 | -6/Factory | First assault squad dispatched 13909 | -6/Factory | Identified exit to Garrison 13951 | -6/Factory | Build established: Hacker-Mutant 14003 | -6/Factory | Repaired Hvy. Armor Plating? 14196 | -6/Factory | Entered Garrison 14229 | -6/Garrison | Triggered checkpoint 14263 | -6/Garrison | Heavy support dispatched to Factory 14272 | -6/Garrison | Garrison Relay disabled 14272 | -6/Garrison | Triggered checkpoint 14343 | -6/Garrison | System corruption reached 10% 14414 | -6/Garrison | Garrison Relay disabled 14537 | -6/Garrison | Found Gamma Bomb Array 14549 | -6/Garrison | Found Fusion Bomb Launcher 14596 | -6/Garrison | Build established: Mutant 14617 | -6/Garrison | Triggered checkpoint 14624 | -6/Garrison | Triggered checkpoint 14627 | -6/Garrison | Triggered checkpoint 14669 | -6/Garrison | Triggered checkpoint 14705 | -6/Garrison | Garrison Relay disabled 14817 | -6/Garrison | Discovered new exit (range 10) 14874 | -6/Garrison | Triggered checkpoint 14922 | -6/Garrison | Garrison Relay disabled 15094 | -6/Garrison | Discovered new exit (range 10) 15173 | -6/Garrison | Triggered checkpoint 15269 | -6/Garrison | Triggered checkpoint 15389 | -6/Garrison | Discovered new exit (range 3) 15429 | -6/Garrison | Triggered checkpoint 15562 | -6/Garrison | Garrison Relay disabled 15650 | -6/Garrison | Lost 6 allies 15666 | -6/Garrison | Triggered checkpoint 15820 | -6/Garrison | Phase Generator disabled 16213 | -6/Garrison | H-XX Assembler disabled 16335 | -6/Garrison | Door terminal overloaded 16336 | -6/Garrison | Rescued a captive Derelict 16483 | -6/Garrison | Destroyed 8 combat bots 16651 | -6/Garrison | Lost 9 allies 16925 | -6/Garrison | Installed Relay Interface Framework 17098 | -6/Garrison | Entered Factory 17098 | -6/Factory | Accompanied by 3 allies 17378 | -6/Factory | Identified exit to DSF 17406 | -6/Factory | Found Imp. Powered Armor 17448 | -6/Factory | First assault squad dispatched 17594 | -6/Factory | Identified exit to Garrison 17627 | -6/Factory | Entered Garrison 17804 | -6/Garrison | Rescued a captive Derelict 17805 | -6/Garrison | Rescued a captive Derelict 17911 | -6/Garrison | Triggered checkpoint 17932 | -6/Garrison | Triggered checkpoint 17945 | -6/Garrison | Triggered checkpoint 18002 | -6/Garrison | Destroyed 7 combat bots 18130 | -6/Garrison | Garrison Relay disabled 18199 | -6/Garrison | Discovered new exit (range 15) 18325 | -6/Garrison | Garrison Relay disabled 18382 | -6/Garrison | Entered Factory 18382 | -5/Factory | Evolved 2 slots: Utility x2 18518 | -5/Factory | Discovered new exit (range 12) 18682 | -5/Factory | First assault squad dispatched 18802 | -5/Factory | Sucked down chute 18802 | -5/Factory | Entered Waste 18803 | -5/Waste | Met a frightened Derelict 18820 | -5/Waste | Spotted C-40 Crusher 18825 | -5/Waste | Spotted C-40 Crusher 18858 | -5/Waste | Found Prototype Hackware 18881 | -5/Waste | Spotted C-40 Crusher 18889 | -5/Waste | Spotted C-40 Crusher 18915 | -5/Waste | Warlord forces began an assault 18918 | -5/Waste | Allies destroyed C-40 Crusher 18928 | -5/Waste | Allies destroyed C-40 Crusher 18969 | -5/Waste | Spotted C-40 Crusher 18971 | -5/Waste | Spotted C-40 Crusher 18978 | -5/Waste | Allies destroyed C-40 Crusher 18990 | -5/Waste | Allies destroyed C-40 Crusher 18992 | -5/Waste | Allies destroyed C-40 Crusher 18995 | -5/Waste | Found Damper Plating 19002 | -5/Waste | Allies destroyed C-40 Crusher 19027 | -5/Waste | Lost 9 allies 19124 | -5/Waste | Discovered new exit (range 12) 19518 | -5/Waste | Build established: Scavenger-Mutant 19660 | -5/Waste | Murdered 7 allies 19944 | -5/Waste | Entered Factory 19944 | -5/Factory | Accompanied by 2 allies 20125 | -5/Factory | Identified Exp. System Shield 20181 | -5/Factory | Repaired Hrd. Heavy Armor Plating 20251 | -5/Factory | Found Imp. Powered Armor 20634 | -5/Factory | Identified exit to Upper Caves 20634 | -5/Factory | Identified exit to Extension 21259 | -5/Factory | Discovered new exit (range 16) 21263 | -5/Factory | Build established: Mutant 21268 | -5/Factory | Destroyed 8 combat bots 21522 | -5/Factory | Repaired Corrupted Proton Cannon? 21533 | -5/Factory | Fabricated Quantum Reactor? 21564 | -5/Factory | Learned 4 Quarantine zone layouts 21597 | -5/Factory | Learned Research trap positions 21618 | -5/Factory | Identified exit to Factory 21627 | -5/Factory | Learned 2 Extension zone layouts 21628 | -5/Factory | Learned location of Upper Caves (-5) 21635 | -5/Factory | Loaded intel: 6 fabricator locations 21744 | -5/Factory | First assault squad dispatched 21758 | -5/Factory | Entered Extension 21758 | -5/Extension | Accompanied by 1 ally 22003 | -5/Extension | Energy Cycler disabled 22003 | -5/Extension | Rescued a captive Derelict 22003 | -5/Extension | Rescued a captive Derelict 22004 | -5/Extension | Rescued a captive Derelict 22004 | -5/Extension | Rescued a captive Derelict 22004 | -5/Extension | Rescued a captive Derelict 22005 | -5/Extension | Rescued a captive Derelict 22005 | -5/Extension | Rescued a captive Derelict 22005 | -5/Extension | Rescued a captive Derelict 22007 | -5/Extension | Rescued a captive Derelict 22012 | -5/Extension | Rescued a captive Derelict 22470 | -5/Extension | Spotted B-75 Beast 22484 | -5/Extension | Spotted B-75 Beast 23018 | -5/Extension | Build established: Commander-Mutant 23026 | -5/Extension | Destroyed B-75 Beast 23073 | -5/Extension | Lost 4 allies 23078 | -5/Extension | Destroyed B-75 Beast 23083 | -5/Extension | Disrupted transfer network 23256 | -5/Extension | Destroyed 7 combat bots 23322 | -5/Extension | Build established: Mutant 23339 | -5/Extension | Extracted ID and sensor layout for unrecognized location from A7's data core 23559 | -5/Extension | Discovered new exit (range 15) 23561 | -5/Extension | Discovered exit to Factory (range 15) 24202 | -5/Extension | Entered Cetus 24230 | -5/Cetus | Spotted Cetus Guard 24230 | -5/Cetus | Spotted Cetus Guard 24234 | -5/Cetus | Destroyed Cetus Guard 24234 | -5/Cetus | Spotted Cetus Guard 24235 | -5/Cetus | Destroyed Cetus Guard 24235 | -5/Cetus | Spotted Cetus Guard 24236 | -5/Cetus | Destroyed Cetus Guard 24241 | -5/Cetus | Destroyed Cetus Guard 24436 | -5/Cetus | Discovered new exit (range 16) 24482 | -5/Cetus | Spotted Cetus Guard 24482 | -5/Cetus | Spotted Cetus Guard 24487 | -5/Cetus | Spotted Cetus Guard 24488 | -5/Cetus | Destroyed Cetus Guard 24488 | -5/Cetus | Destroyed Cetus Guard 24488 | -5/Cetus | Spotted Cetus Guard 24490 | -5/Cetus | Destroyed Cetus Guard 24491 | -5/Cetus | Destroyed Cetus Guard 24734 | -5/Cetus | Entered Archives 24910 | -5/Archives | Discovered exit to Factory (range 15) 24973 | -5/Archives | Unable to access archive contents 24995 | -5/Archives | Unable to access archive contents 25018 | -5/Archives | Unable to access archive contents 25026 | -5/Archives | Discovered new exit (range 16) 25044 | -5/Archives | Unable to access archive contents 25373 | -5/Archives | Build established: Scavenger-Mutant 25374 | -5/Archives | Discovered new exit (range 13) 25742 | -5/Archives | Entered Hub_04(d) 26356 | -5/Hub_04(d) | Network Hub disabled 26446 | -5/Hub_04(d) | Spotted Lightning 26448 | -5/Hub_04(d) | Spotted Lightning 26448 | -5/Hub_04(d) | Spotted Lightning 26513 | -5/Hub_04(d) | Destroyed Lightning 26540 | -5/Hub_04(d) | Destroyed Lightning 26615 | -5/Hub_04(d) | Destroyed Lightning 26624 | -5/Hub_04(d) | Found Prototype Device 26644 | -5/Hub_04(d) | Found Prototype Energy Cannon 26682 | -5/Hub_04(d) | Network Hub disabled 26796 | -5/Hub_04(d) | Disrupted transfer network 26915 | -5/Hub_04(d) | Spotted Lightning 26925 | -5/Hub_04(d) | Spotted Lightning 26925 | -5/Hub_04(d) | Spotted Lightning 26940 | -5/Hub_04(d) | Destroyed Lightning 26942 | -5/Hub_04(d) | First assault squad dispatched 26946 | -5/Hub_04(d) | Destroyed Lightning 26949 | -5/Hub_04(d) | Spotted Lightning 26952 | -5/Hub_04(d) | Spotted Lightning 26953 | -5/Hub_04(d) | Spotted Lightning 26967 | -5/Hub_04(d) | Destroyed 7 combat bots 26984 | -5/Hub_04(d) | Destroyed Lightning 27022 | -5/Hub_04(d) | Destroyed Lightning 27049 | -5/Hub_04(d) | Destroyed Lightning 27090 | -5/Hub_04(d) | Destroyed 11 combat bots 27173 | -5/Hub_04(d) | Destroyed Lightning 27297 | -5/Hub_04(d) | System corruption reached 10% 27478 | -5/Hub_04(d) | Discovered exit to Factory (range 8) 27487 | -5/Hub_04(d) | Identified Exp. Phase Shifter 27504 | -5/Hub_04(d) | Entered Factory 27504 | -4/Factory | Accompanied by 1 ally 27504 | -4/Factory | Evolved 2 slots: Utility x2 27754 | -4/Factory | First assault squad dispatched 27894 | -4/Factory | Fabricated Quantum Reactor? 28142 | -4/Factory | Discovered new exit (range 12) 28349 | -4/Factory | Repaired Lyr. Heavy Armor Plating? 28365 | -4/Factory | Repaired Adv. Cooling System? 28425 | -4/Factory | Discovered new exit (range 16) 28642 | -4/Factory | Fabricated L-61 Swordsman (x3) 28788 | -4/Factory | Build established: Hacker-Mutant 28858 | -4/Factory | Repaired Broken Arm. Huge Wheel? 28892 | -4/Factory | Identified exit to Research 28951 | -4/Factory | Learned Quarantine trap positions 28961 | -4/Factory | Repaired Quantum Reactor? 29037 | -4/Factory | Loaded intel: 99 trap records 29088 | -4/Factory | Repaired Centrium Medium Armor Plating 29102 | -4/Factory | Build established: Scavenger-Mutant 29151 | -4/Factory | Learned Research garrison access intel 29502 | -4/Factory | Sucked down chute 29502 | -4/Factory | Entered Waste 29514 | -4/Waste | Spotted C-40 Crusher 29522 | -4/Waste | Spotted C-40 Crusher 29557 | -4/Waste | Spotted C-40 Crusher 29558 | -4/Waste | Build established: Hacker-Mutant 29623 | -4/Waste | Spotted C-40 Crusher 29636 | -4/Waste | Spotted C-40 Crusher 29720 | -4/Waste | Spotted C-40 Crusher 29742 | -4/Waste | Discovered new exit (range 13) 29884 | -4/Waste | Destroyed C-40 Crusher 29894 | -4/Waste | Destroyed C-40 Crusher 29924 | -4/Waste | Destroyed C-40 Crusher 29942 | -4/Waste | Destroyed C-40 Crusher 29991 | -4/Waste | Destroyed C-40 Crusher 29999 | -4/Waste | Destroyed C-40 Crusher 30232 | -4/Waste | Warlord forces began an assault 30261 | -4/Waste | Identified EMDS 30519 | -4/Waste | Murdered 12 allies 30568 | -4/Waste | Murdered 3 allies 30583 | -4/Waste | Found Damper Plating 30698 | -4/Waste | Entered Factory 30698 | -4/Factory | Accompanied by 2 allies 31029 | -4/Factory | Identified exit to Upper Caves 31029 | -4/Factory | Identified exit to Armory 32098 | -4/Factory | Fabricated L-61 Swordsman? 32136 | -4/Factory | Spotted B-86 Titan 32207 | -4/Factory | Lost 3 allies 32225 | -4/Factory | Destroyed B-86 Titan 32228 | -4/Factory | Discovered exit to Research (range 9) 32276 | -4/Factory | System corruption reached 10% 32448 | -4/Factory | First assault squad dispatched 32482 | -4/Factory | Spotted B-86 Titan 32986 | -4/Factory | Entered Armory 33013 | -4/Armory | Build established: Scavenger-Mutant 33289 | -4/Armory | Lost 6 parts (1p3u2w) 33487 | -4/Armory | Found Quantum Capacitor 34136 | -4/Armory | Discovered new exit (range 3) 34247 | -4/Armory | Entered Lab 34247 | -4/Lab | Discovered exit to Research (range 9) 34267 | -4/Lab | Hidden lab's door opened automatically 34267 | -4/Lab | Sensor layout match revealed 34268 | -4/Lab | Gained access to the hidden lab's interior 34337 | -4/Lab | Found Alien Artifact 34391 | -4/Lab | Found Alien Artifact 34391 | -4/Lab | Identified Core Regenerator 34391 | -4/Lab | Used Core Regenerator, restored core integrity (+287) 34419 | -4/Lab | Found Alien Artifact 34419 | -4/Lab | Identified Integrated Reactor 34419 | -4/Lab | Installed Integrated Reactor, increased core energy generation (+10) 34428 | -4/Lab | Found Alien Artifact 34428 | -4/Lab | Identified Transdimensional Reconstructor 34428 | -4/Lab | Warped through subspace 34429 | -4/Lab | Detected by scanners 34443 | -4/Lab | Confronted by A5 34444 | -4/Lab | Identified Core Reset Matrix 34444 | -4/Lab | Used Core Reset Matrix 34451 | -4/Lab | Destroyed A5 34463 | -4/Lab | Found Prototype Hackware 34469 | -4/Lab | Found Prototype Special Weapon 34494 | -4/Lab | Unable to decrypt terminal 34520 | -4/Lab | Found Prototype Protection 34520 | -4/Lab | Identified Med. Regenerative Plating 34525 | -4/Lab | Found Prototype Hackware 34585 | -4/Lab | Found Prototype Energy Gun 34585 | -4/Lab | Identified Hyp. EM Gauss Rifle 34591 | -4/Lab | Found Prototype Energy Cannon 34591 | -4/Lab | Identified Potential Cannon 34716 | -4/Lab | Unable to decrypt terminal 34721 | -4/Lab | Found LC Capacitor 34852 | -4/Lab | Discovered exit to Research (range 9) 34932 | -4/Lab | Unable to decrypt terminal 34943 | -4/Lab | Entered Research 34943 | -3/Research | Evolved 2 slots: Utility x2 35008 | -3/Research | Identified Exp. System Shield 35009 | -3/Research | Identified Deep Network Scanner 35056 | -3/Research | Repaired Centrium Medium Armor Plating 35094 | -3/Research | Repaired Centrium Medium Armor Plating 35114 | -3/Research | Repaired Centrium Wheel 35143 | -3/Research | Revision forces began assault on 0b10 35145 | -3/Research | Repaired Quantum Reactor 35149 | -3/Research | Met up with Revision 17++ 35302 | -3/Research | Build established: Hacker-Mutant 35398 | -3/Research | Identified exit to Quarantine 35398 | -3/Research | Identified exit to Research 35612 | -3/Research | Intercept squad dispatched 35643 | -3/Research | Research terminal network offline 35716 | -3/Research | Spotted B-90 Cyclops 35728 | -3/Research | Spotted Striker 35730 | -3/Research | Spotted Striker 35732 | -3/Research | Spotted Striker 35766 | -3/Research | Entered Quarantine 35767 | -3/Quarantine | Detected hypermatrix surge 35767 | -3/Quarantine | Sensed 9 artifacts in vicinity 35771 | -3/Quarantine | Lost 3 allies 35790 | -3/Quarantine | Lost 5 parts (2p3u) 35790 | -3/Quarantine | Found Core Reset Matrix 36235 | -3/Quarantine | Found Core Stripper 36244 | -3/Quarantine | Sensed 7 artifacts in vicinity 36442 | -3/Quarantine | Found Core Cannon 36504 | -3/Quarantine | Discovered exit to Research (range 16) 36570 | -3/Quarantine | Cryocooling Duct disabled 36585 | -3/Quarantine | Ambient heat levels rising (+20) 36585 | -3/Quarantine | Non-combat units ordered to evacuate 36608 | -3/Quarantine | Found Sigix Broadsword 36955 | -3/Quarantine | Entered Research 36955 | -2/Research | Evolved 2 slots: Utility x1, Weapon x1 37121 | -2/Research | Spotted B-90 Cyclops 37130 | -2/Research | Destroyed B-90 Cyclops 37176 | -2/Research | Identified exit to Testing 37672 | -2/Research | Entered Testing 37672 | -2/Testing | Spotted Superbehemoth 37786 | -2/Testing | Fabricated Quantum Reactor (x2) 37831 | -2/Testing | Found Prototype Processor 38122 | -2/Testing | Found Unknown Device 38122 | -2/Testing | Identified Adv. Force Booster 38137 | -2/Testing | Found Prototype Device 38137 | -2/Testing | Identified Exp. Shock Absorption System 38335 | -2/Testing | Identified Spectral Analyzer 38340 | -2/Testing | Lost 7 parts (4u3w) 38351 | -2/Testing | System corruption reached 10% 38354 | -2/Testing | Spotted PY-SZV2DMPL02 38381 | -2/Testing | Destroyed 10 combat bots 38416 | -2/Testing | Repaired Broken Quantum Capacitor 38458 | -2/Testing | Repaired Centrium Medium Armor Plating 38494 | -2/Testing | Intercept squad dispatched 38502 | -2/Testing | Spotted Tracker 38503 | -2/Testing | Spotted Tracker 38507 | -2/Testing | Destroyed Tracker 38540 | -2/Testing | Destroyed Tracker 38541 | -2/Testing | Spotted Combat Programmer 38550 | -2/Testing | Spotted Combat Programmer 38578 | -2/Testing | System corruption reached 30% 38625 | -2/Testing | Released all parts (9) 38644 | -2/Testing | Spotted Fortress 38650 | -2/Testing | Core integrity fell below 50% 38654 | -2/Testing | Lost 16 parts (3p1n10u2w) 38679 | -2/Testing | Discovered new exit (range 6) 38682 | -2/Testing | Entered Section 7 38683 | -2/Section 7 | Sensed 20 artifacts in vicinity 38684 | -2/Section 7 | Spotted S7 Guard 38695 | -2/Section 7 | Found Core Reset Matrix 38697 | -2/Section 7 | Sensed 19 artifacts in vicinity 38720 | -2/Section 7 | Found Microwarp Drive 38752 | -2/Section 7 | Found Microwarp Drive 38803 | -2/Section 7 | Spotted S7 Guard 38811 | -2/Section 7 | Core integrity fell below 20% 38817 | -2/Section 7 | Spotted Alpha 7 38817 | -2/Section 7 | Spotted Alpha 7 38817 | -2/Section 7 | Destroyed by H-88 Terminator with KE Penetrator Last Messages --------------- 38723_ Penetrated by Slug. 38747_ Suspension Chamber breached. 38751_ O-32 Director: "IFF HANDSHAKE FAILED. SECURING TERMINAL." 38752_ Acquired Microwarp Drive. 38757_ ALERT: Hostiles spotted, dispatching reinforcements to Terminal 7021. 38788_ Aeration Cycler disabled. 38791_ Penetrated by Slug. 38791_ Slug penetrates Quantum Generator. 38792_ Acquired Unknown Hackware. 38792_ Identified System Shield. 38794_ Microwarped (distance 8). 38807_ Microwarped (distance 13). 38808_ Microwarped (distance 5). 38811_ Microwarped (distance 17). 38812_ Microwarped (distance 9). 38816_ Microwarped (distance 10). 38817_ Microwarped (distance 19). 38817_ Slug penetrates Wall. 38817_ Penetrated by Slug. Map ----- +----------------------------------------------------+ | ?????????????????????????????????????????????????? | | ?????????????????????????????????????????????????? | | ?????????????????????????????????????????????????? | | ?????????????????????????????????????????????????? | | ?????????????????????????????????????????????????? | | ?????????????????????????????????????????????????? | | ?????????????????????????????????????????????????? | | ?????????????????????????????????????????????????? | | ?????????????????????????????????????????????????? | | ?????????????????????????????????????????????????? | | ?????????????????????????????????????????????????? | | ?????????????????????????????????????????????????? | | ?????????????????????????????????????????????????? | | ?????????????????????????????????????????????????? | | ?????????????????????????????????????????????????? | | ?????????????????????????????????????????????????? | | ?????????????????????????????????????????????????? | | ?????????????????????????????????????????????????? | | ?????????????????????????????????????????????????? | | ?????????????????????????????????????????????????? | | ?????????????????????????????????????????????????? | | ?????????????????????????????????????????????????? | | ?????????????????????????????????????????????????? | | ??????????????????????????????????? "???????????? | | ???############??########## # "???????????? | | ???# @7 / ????????? | | # ## A ????????? | | / # h / ????????? | | # h w 7 / ?????????? | | *# ######+############ # ?????????? | | # #??????????????????##""" ??????????? | | # #?????????????????????"" ??????????? | | = + #??????????????????????" ??????????? | | # #????????????????????????? ???????????? | | "" # #???????????????????????????? ???????????? | | "" # #????????????????????????????????????????? | | " # #????????????????????????????????????????? | | =# #????????????????????????????????????????? | | ???# #????????????????????????????????????????? | | ???# #????????????????????????????????????????? | | ???# #????????????????????????????????????????? | | ???# #????????????????????????????????????????? | | ???# #????????????????????????????????????????? | | ???# #????????????????????????????????????????? | | ???# #????????????????????????????????????????? | | ???# #????????????????????????????????????????? | | ???+ +????????????????????????????????????????? | | ???# #????????????????????????????????????????? | | ???# #????????????????????????????????????????? | | ???# #????????????????????????????????????????? | +----------------------------------------------------+ Best States ------------- Heat Dissipation 158 Coolant Potential 120 Energy Generation 75 Energy Capacity 850 Matter Stores 300 Matter Capacity 500 Sight Range 24 Robot Scan Range 16 Terrain Scan Range 24 Terrain Scan Density 210 Jamming Range 16 Cloak Strength 6 EM Shielding 6 Armor Coverage 1600 Resistance: KI 30 Resistance: TH 10 Resistance: EM 90 Utility Shielding 66 Weapon Cycling 25 Phase Shifting 20 Evasion (%) 60 Targeting Accuracy 6 Launcher Accuracy 40 Energy Filtering 50 Particle Charging 15 Offensive Hacking 37 Defensive Hacking 28 Relay Coupler Types 1 Relay Coupler Value 30 Authchip Count 1 Trap Extractor Capacity 6 Item Schematics ----------------- None Robot Schematics ------------------ None Fabricated ------------ Quantum Reactor | x2 | -5/Factory | Preloaded Quantum Reactor | x2 | -4/Factory | Preloaded L-61 Swordsman | x3 | -4/Factory | Preloaded L-61 Swordsman | x3 | -4/Factory | Preloaded Quantum Reactor | x2 | -2/Testing Alien Tech Used ----------------- Core Regenerator Integrated Reactor Transdimensional Reconstructor Core Reset Matrix LC Capacitor Core Cannon Sigix Broadsword Core Stripper Microwarp Drive Achievements -------------- Launcher Specialist Left-hand Path Max Potential Shocking Conclusion \\IAMDERELICT Challenges ------------ None Game ------ Seed TacticalHypercooledTorch Manual? 0 Play Time 22:04:09 Cumulative 224.6 hours Start 2024.12.14 @ 18:44:15 End 2024.12.26 @ 16:11:48 Sessions 41 Manual Loads 0 Difficulty Rogue Special Mode None Game No. 34 Rogue 31 Adventurer 3 Explorer 0 Win Type - Total 8 Types 8/0/0/0/0/0/0/0/0 Lore% 43 Gallery% 72 Achievement% 73 Wizard Run 0 Options --------- Layout 0 ASCII 0 Keyboard 0 Movement Numpad Keybinds 0 Fullscreen 1 Font 18/SmallcapsGlow Map View 76x50 Zoom Use 0% Tactical HUD 1 Map Filters NONE Filters NONE Steam 1 RUN: 5f868a1f-46c8-4158-af2e-12dbc91005da